Workbook

Sheet Summary
A1: Project Budget Worksheet - Iowa State University of Science and Technology | S1: Eff. 7/1/2017
S2: Updated 12/19/2017
A3: Program Sponsor | D3: . | G3: 2017-07-01 | H3: < <-- Start Date must be entered here
A4: Title | G4: 0 | H4: Enter "other" rate ONLY if not using full IDC rate | T4: GS | U4: Negotiated Rate | V4: This budget is completely adjustable. You will need to double check your work and make adjustments in certain cells, such as:
A5: PI | D5: . | G5: Negotiated Rate | H5: Select calculation type (drop down menu: G5) | U5: Other TDC | V5: Subcontracts - Verify that only the first $25K of each subcontract is charged IDC. You might need to adjust the MTDC for each year of each subcontract.
A6: Period of Performance | D6: . | T6: Total Budget | U6: Other MTDC | V6: Indirect costs- Budget defaults to caculate on 52% MTDC and 53% MTDC, with precise rate in on "F&A Calculations" sheet.
A7: Deadline | D7: . | T7: =T107 -> 0 | W7: To use a rate other than organized research, please enter rate in 'Enter Other Rate' cell and select 'Other TDC' or 'Other MTDC' in dropdown.
H9: Year 1 | J9: Year 2 | L9: Year 3 | N9: Year 4 | P9: Year 5 | R9: Total Federal Funds | S9: Total Cost-Shared Matching Funds | T9: Total Project Funds
H10: Start Date | I10: End Date | J10: Start Date | K10: End Date | L10: Start Date | M10: End Date | N10: Start Date | O10: End Date | P10: Start Date | Q10: End Date
H11: =DATE(YEAR(G3),MONTH(G3),DAY(G3)) -> 2017-07-01 | I11: =J11-1 -> 2018-06-30 | J11: =DATE(YEAR(G3)+1,MONTH(G3),DAY(G3)) -> 2018-07-01 | K11: =L11-1 -> 2019-06-30 | L11: =DATE(YEAR(G3)+2,MONTH(G3),DAY(G3)) -> 2019-07-01 | M11: =N11-1 -> 2020-06-30 | N11: =DATE(YEAR(G3)+3,MONTH(G3),DAY(G3)) -> 2020-07-01 | O11: =P11-1 -> 2021-06-30 | P11: =DATE(YEAR(G3)+4,MONTH(G3),DAY(G3)) -> 2021-07-01 | Q11: =P11+364 -> 2022-06-30
H12: Sponsor Funds Requested | I12: Cost-Shared Matching Funds | J12: Sponsor Funds Requested | K12: Cost-Shared Matching Funds | L12: Sponsor Funds Requested | M12: Cost-Shared Matching Funds | N12: Sponsor Funds Requested | O12: Cost-Shared Matching Funds | P12: Sponsor Funds Requested | Q12: Cost-Shared Matching Funds
D13: Salary | E13: Calendar | F13: Academic | G13: Summer
A14: A | C14: Key Personnel | D14: Monthly | E14: Months | F14: Months | G14: Months | H14: =SUM(H15:H23) -> 0 | I14: 0 | J14: 0 | K14: 0 | L14: 0 | M14: 0 | N14: 0 | O14: 0 | P14: 0 | Q14: 0 | R14: =SUM(H14+J14+L14+N14+P14) -> 0 | S14: =SUM(I14+K14+M14+O14+Q14) -> 0 | T14: =SUM(R14+S14) -> 0
B15: 1 | D15: 0 | E15: 0 | F15: 0 | G15: 0 | H15: =D15*(E15+F15+G15) -> 0 | I15: 0 | J15: =ROUND(H15*1.03,0) -> 0 | K15: 0 | L15: =ROUND(J15*1.03,0) -> 0 | M15: 0 | N15: =ROUND(L15*1.03,0) -> 0 | O15: 0 | P15: =ROUND(N15*1.03,0) -> 0 | Q15: 0 | R15: =SUM(H15+J15+L15+N15+P15) -> 0 | S15: =SUM(I15+K15+M15+O15+Q15) -> 0 | T15: =SUM(R15+S15) -> 0
B16: 2 | D16: 0 | E16: 0 | F16: 0 | G16: 0 | H16: 0 | I16: 0 | J16: =ROUND(H16*1.03,0) -> 0 | K16: 0 | L16: =ROUND(J16*1.03,0) -> 0 | M16: 0 | N16: =ROUND(L16*1.03,0) -> 0 | O16: 0 | P16: =ROUND(N16*1.03,0) -> 0 | Q16: 0 | R16: =SUM(H16+J16+L16+N16+P16) -> 0 | S16: 0 | T16: =SUM(R16+S16) -> 0
B17: 3 | D17: 0 | E17: 0 | F17: 0 | G17: 0 | H17: 0 | I17: 0 | J17: 0 | K17: 0 | L17: 0 | M17: 0 | N17: 0 | O17: 0 | P17: 0 | Q17: 0 | R17: 0 | S17: 0 | T17: 0
B18: 4 | D18: 0 | E18: 0 | F18: 0 | G18: 0 | H18: 0 | I18: 0 | J18: 0 | K18: 0 | L18: 0 | M18: 0 | N18: 0 | O18: 0 | P18: 0 | Q18: 0 | R18: 0 | S18: 0 | T18: 0
B19: 5 | D19: 0 | E19: 0 | F19: 0 | G19: 0 | H19: 0 | I19: 0 | J19: 0 | K19: 0 | L19: 0 | M19: 0 | N19: 0 | O19: 0 | P19: 0 | Q19: 0 | R19: 0 | S19: 0 | T19: 0
B20: 6 | D20: 0 | E20: 0 | F20: 0 | G20: 0 | H20: 0 | I20: 0 | J20: 0 | K20: 0 | L20: 0 | M20: 0 | N20: 0 | O20: 0 | P20: 0 | Q20: 0 | R20: 0 | S20: 0 | T20: 0
B21: 7 | D21: 0 | E21: 0 | F21: 0 | G21: 0 | H21: 0 | I21: 0 | J21: 0 | K21: 0 | L21: 0 | M21: 0 | N21: 0 | O21: 0 | P21: 0 | Q21: 0 | R21: 0 | S21: 0 | T21: 0
B22: 8 | D22: 0 | E22: 0 | F22: 0 | G22: 0 | H22: 0 | I22: 0 | J22: 0 | K22: 0 | L22: 0 | M22: 0 | N22: 0 | O22: 0 | P22: 0 | Q22: 0 | R22: 0 | S22: 0 | T22: 0
B23: 9 | D23: 0 | E23: 0 | F23: 0 | G23: 0 | H23: 0 | I23: 0 | J23: 0 | K23: 0 | L23: 0 | M23: 0 | N23: 0 | O23: 0 | P23: 0 | Q23: 0 | R23: 0 | S23: 0 | T23: 0
E24: Calendar | G24: Number of
A25: B | C25: Other Personnel | D25: Monthly | E25: Months | G25: persons | H25: =SUM(H26:H37) -> 0 | I25: 0 | J25: 0 | K25: 0 | L25: 0 | M25: 0 | N25: 0 | O25: 0 | P25: 0 | Q25: 0 | R25: =SUM(H25+J25+L25+N25+P25) -> 0 | S25: =SUM(I25+K25+M25+O25+Q25) -> 0 | T25: =SUM(R25+S25) -> 0
B26: 1 | C26: Post Doc | D26: 0 | E26: 0 | G26: 0 | H26: =D26*(E26)*G26 -> 0 | I26: 0 | J26: =ROUND(H26*1.03,0) -> 0 | K26: 0 | L26: =ROUND(J26*1.03,0) -> 0 | M26: 0 | N26: =ROUND(L26*1.03,0) -> 0 | O26: 0 | P26: =ROUND(N26*1.03,0) -> 0 | Q26: 0 | R26: =SUM(H26+J26+L26+N26+P26) -> 0 | S26: 0 | T26: =SUM(R26+S26) -> 0
B27: 2 | C27: Post Doc | D27: 0 | E27: 0 | G27: 0 | H27: 0 | I27: 0 | J27: =ROUND(H27*1.03,0) -> 0 | K27: 0 | L27: =ROUND(J27*1.03,0) -> 0 | M27: 0 | N27: =ROUND(L27*1.03,0) -> 0 | O27: 0 | P27: =ROUND(N27*1.03,0) -> 0 | Q27: 0 | R27: 0 | S27: 0 | T27: 0
B28: 3 | C28: Research Asst-Halftime | D28: 0 | E28: 0 | G28: 0 | H28: 0 | I28: 0 | J28: 0 | K28: 0 | L28: 0 | M28: 0 | N28: 0 | O28: 0 | P28: 0 | Q28: 0 | R28: 0 | S28: 0 | T28: 0
B29: 4 | C29: Research Asst-Halftime | D29: 0 | E29: 0 | G29: 0 | H29: 0 | I29: 0 | J29: 0 | K29: 0 | L29: 0 | M29: 0 | N29: 0 | O29: 0 | P29: 0 | Q29: 0 | R29: 0 | S29: 0 | T29: 0
B30: 5 | C30: Hourly Undergraduate student | D30: 0 | E30: 0 | G30: 0 | H30: 0 | I30: 0 | J30: 0 | K30: 0 | L30: 0 | M30: 0 | N30: 0 | O30: 0 | P30: 0 | Q30: 0 | R30: 0 | S30: 0 | T30: 0
B31: 6 | C31: Hourly Undergraduate student | D31: 0 | E31: 0 | G31: 0 | H31: 0 | I31: 0 | J31: 0 | K31: 0 | L31: 0 | M31: 0 | N31: 0 | O31: 0 | P31: 0 | Q31: 0 | R31: 0 | S31: 0 | T31: 0
B32: 7 | C32: P&S | D32: 0 | E32: 0 | G32: 0 | H32: 0 | I32: 0 | J32: 0 | K32: 0 | L32: 0 | M32: 0 | N32: 0 | O32: 0 | P32: 0 | Q32: 0 | R32: 0 | S32: 0 | T32: 0
B33: 8 | C33: P&S | D33: 0 | E33: 0 | G33: 0 | H33: 0 | I33: 0 | J33: 0 | K33: 0 | L33: 0 | M33: 0 | N33: 0 | O33: 0 | P33: 0 | Q33: 0 | R33: 0 | S33: 0 | T33: 0
B34: 9 | C34: Secretarial/Clerical | D34: 0 | E34: 0 | G34: 0 | H34: 0 | I34: 0 | J34: 0 | K34: 0 | L34: 0 | M34: 0 | N34: 0 | O34: 0 | P34: 0 | Q34: 0 | R34: 0 | S34: 0 | T34: 0
B35: 10 | C35: Secretarial/Clerical | D35: 0 | E35: 0 | G35: 0 | H35: 0 | I35: 0 | J35: 0 | K35: 0 | L35: 0 | M35: 0 | N35: 0 | O35: 0 | P35: 0 | Q35: 0 | R35: 0 | S35: 0 | T35: 0
B36: 11 | C36: Non-Student Hourly | D36: 0 | E36: 0 | G36: 0 | H36: 0 | I36: 0 | J36: 0 | K36: 0 | L36: 0 | M36: 0 | N36: 0 | O36: 0 | P36: 0 | Q36: 0 | R36: 0 | S36: 0 | T36: 0
B37: 12 | C37: Non-Student Hourly | D37: 0 | E37: 0 | G37: 0 | H37: 0 | I37: 0 | J37: 0 | K37: 0 | L37: 0 | M37: 0 | N37: 0 | O37: 0 | P37: 0 | Q37: 0 | R37: 0 | S37: 0 | T37: 0
C39: Subtotal: Salaries and Wages | H39: =+H14+H25 -> 0 | I39: 0 | J39: 0 | K39: 0 | L39: 0 | M39: 0 | N39: 0 | O39: 0 | P39: 0 | Q39: 0 | R39: =SUM(H39+J39+L39+N39+P39) -> 0 | S39: =SUM(I39+K39+M39+O39+Q39) -> 0 | T39: =SUM(R39+S39) -> 0
A41: C | C41: Fringe Benefits | D41: Rate | H41: =SUM(H42:H62) -> 0 | I41: 0 | J41: 0 | K41: 0 | L41: 0 | M41: 0 | N41: 0 | O41: 0 | P41: 0 | Q41: 0 | R41: =SUM(H41+J41+L41+N41+P41) -> 0 | S41: =SUM(I41+K41+M41+O41+Q41) -> 0 | T41: =SUM(R41+S41) -> 0
C42: =+C15 -> 0 | D42: 0.275 | H42: =ROUND(D42*H15,0) -> 0 | I42: =ROUND(D42*I15,0) -> 0 | J42: =ROUND(D42*J15,0) -> 0 | K42: =ROUND(D42*K15,0) -> 0 | L42: =ROUND(D42*L15,0) -> 0 | M42: =ROUND(D42*M15,0) -> 0 | N42: =ROUND(D42*N15,0) -> 0 | O42: =ROUND(D42*O15,0) -> 0 | P42: =ROUND(D42*P15,0) -> 0 | Q42: =ROUND(D42*Q15,0) -> 0 | R42: =SUM(H42+J42+L42+N42+P42) -> 0 | S42: 0 | T42: =SUM(R42+S42) -> 0
C43: =+C16 -> 0 | D43: 0.275 | H43: =ROUND(D43*H16,0) -> 0 | I43: =ROUND(D43*I16,0) -> 0 | J43: =ROUND(D43*J16,0) -> 0 | K43: =ROUND(D43*K16,0) -> 0 | L43: =ROUND(D43*L16,0) -> 0 | M43: =ROUND(D43*M16,0) -> 0 | N43: =ROUND(D43*N16,0) -> 0 | O43: =ROUND(D43*O16,0) -> 0 | P43: =ROUND(D43*P16,0) -> 0 | Q43: =ROUND(D43*Q16,0) -> 0 | R43: 0 | S43: 0 | T43: 0
C44: =+C17 -> 0 | D44: 0.275 | H44: 0 | I44: 0 | J44: 0 | K44: 0 | L44: 0 | M44: 0 | N44: 0 | O44: 0 | P44: 0 | Q44: 0 | R44: 0 | S44: 0 | T44: 0
C45: =+C18 -> 0 | D45: 0.275 | H45: 0 | I45: 0 | J45: 0 | K45: 0 | L45: 0 | M45: 0 | N45: 0 | O45: 0 | P45: 0 | Q45: 0 | R45: 0 | S45: 0 | T45: 0
C46: =+C19 -> 0 | D46: 0.275 | H46: 0 | I46: 0 | J46: 0 | K46: 0 | L46: 0 | M46: 0 | N46: 0 | O46: 0 | P46: 0 | Q46: 0 | R46: 0 | S46: 0 | T46: 0
C47: =C20 -> 0 | D47: 0.275 | H47: 0 | I47: 0 | J47: 0 | K47: 0 | L47: 0 | M47: 0 | N47: 0 | O47: 0 | P47: 0 | Q47: 0 | R47: 0 | S47: 0 | T47: 0
C48: =C21 -> 0 | D48: 0.275 | H48: 0 | I48: 0 | J48: 0 | K48: 0 | L48: 0 | M48: 0 | N48: 0 | O48: 0 | P48: 0 | Q48: 0 | R48: 0 | S48: 0 | T48: 0
C49: =C22 -> 0 | D49: 0.275 | H49: 0 | I49: 0 | J49: 0 | K49: 0 | L49: 0 | M49: 0 | N49: 0 | O49: 0 | P49: 0 | Q49: 0 | R49: 0 | S49: 0 | T49: 0
C50: =C23 -> 0 | D50: 0.275 | H50: 0 | I50: 0 | J50: 0 | K50: 0 | L50: 0 | M50: 0 | N50: 0 | O50: 0 | P50: 0 | Q50: 0 | R50: 0 | S50: 0 | T50: 0
C51: =+C26 -> Post Doc | D51: 0.329 | H51: =ROUND(D51*H26,0) -> 0 | I51: =ROUND(D51*I26,0) -> 0 | J51: =ROUND(D51*J26,0) -> 0 | K51: =ROUND(D51*K26,0) -> 0 | L51: =ROUND(D51*L26,0) -> 0 | M51: =ROUND(D51*M26,0) -> 0 | N51: =ROUND(D51*N26,0) -> 0 | O51: =ROUND(D51*O26,0) -> 0 | P51: =ROUND(D51*P26,0) -> 0 | Q51: =ROUND(D51*Q26,0) -> 0 | R51: 0 | S51: 0 | T51: 0
C52: Post Doc | D52: 0.329 | H52: =ROUND(D52*H27,0) -> 0 | I52: =ROUND(D52*I27,0) -> 0 | J52: =ROUND(D52*J27,0) -> 0 | K52: =ROUND(D52*K27,0) -> 0 | L52: =ROUND(D52*L27,0) -> 0 | M52: =ROUND(D52*M27,0) -> 0 | N52: =ROUND(D52*N27,0) -> 0 | O52: =ROUND(D52*O27,0) -> 0 | P52: =ROUND(D52*P27,0) -> 0 | Q52: =ROUND(D52*Q27,0) -> 0 | R52: 0 | S52: 0 | T52: 0
C53: Research Asst-Halftime | D53: 0.098 | H53: 0 | I53: 0 | J53: 0 | K53: 0 | L53: 0 | M53: 0 | N53: 0 | O53: 0 | P53: 0 | Q53: 0 | R53: 0 | S53: 0 | T53: 0
C54: Research Asst-Halftime | D54: 0.098 | H54: 0 | I54: 0 | J54: 0 | K54: 0 | L54: 0 | M54: 0 | N54: 0 | O54: 0 | P54: 0 | Q54: 0 | R54: 0 | S54: 0 | T54: 0
C55: Hourly Undergraduate student | D55: 0.006 | H55: 0 | I55: 0 | J55: 0 | K55: 0 | L55: 0 | M55: 0 | N55: 0 | O55: 0 | P55: 0 | Q55: 0 | R55: 0 | S55: 0 | T55: 0
C56: Hourly Undergraduate student | D56: 0.006 | H56: 0 | I56: 0 | J56: 0 | K56: 0 | L56: 0 | M56: 0 | N56: 0 | O56: 0 | P56: 0 | Q56: 0 | R56: 0 | S56: 0 | T56: 0
C57: =+C32 -> P&S | D57: 0.345 | H57: 0 | I57: 0 | J57: 0 | K57: 0 | L57: 0 | M57: 0 | N57: 0 | O57: 0 | P57: 0 | Q57: 0 | R57: 0 | S57: 0 | T57: 0
C58: P&S | D58: 0.345 | H58: 0 | I58: 0 | J58: 0 | K58: 0 | L58: 0 | M58: 0 | N58: 0 | O58: 0 | P58: 0 | Q58: 0 | R58: 0 | S58: 0 | T58: 0
C59: Secretarial/Clerical | D59: 0.458 | H59: 0 | I59: 0 | J59: 0 | K59: 0 | L59: 0 | M59: 0 | N59: 0 | O59: 0 | P59: 0 | Q59: 0 | R59: 0 | S59: 0 | T59: 0
C60: Secretarial/Clerical | D60: 0.458 | H60: 0 | I60: 0 | J60: 0 | K60: 0 | L60: 0 | M60: 0 | N60: 0 | O60: 0 | P60: 0 | Q60: 0 | R60: 0 | S60: 0 | T60: 0
C61: Non-Student Hourly | D61: 0.171 | H61: 0 | I61: 0 | J61: 0 | K61: 0 | L61: 0 | M61: 0 | N61: 0 | O61: 0 | P61: 0 | Q61: 0 | R61: 0 | S61: 0 | T61: 0
C62: Non-Student Hourly | D62: 0.171 | H62: 0 | I62: 0 | J62: 0 | K62: 0 | L62: 0 | M62: 0 | N62: 0 | O62: 0 | P62: 0 | Q62: 0 | R62: 0 | S62: 0 | T62: 0
C64: Subtotal: Salaries, Wages, and Benefits | H64: =H39+H41 -> 0 | I64: =I39+I41 -> 0 | J64: =J39+J41 -> 0 | K64: 0 | L64: 0 | M64: 0 | N64: 0 | O64: 0 | P64: 0 | Q64: 0 | R64: =SUM(H64+J64+L64+N64+P64) -> 0 | S64: =SUM(I64+K64+M64+O64+Q64) -> 0 | T64: =SUM(R64+S64) -> 0
A66: D | C66: Equipment (List Item and $ amount for each item > $5k) | H66: =SUM(H67:H68) -> 0 | I66: 0 | J66: 0 | K66: 0 | L66: 0 | M66: 0 | N66: 0 | O66: 0 | P66: 0 | Q66: 0 | R66: =SUM(H66+J66+L66+N66+P66) -> 0 | S66: 0 | T66: =SUM(R66+S66) -> 0
C67: 1 | R67: 0 | S67: 0 | T67: =SUM(R67+S67) -> 0
C68: 2 | R68: 0 | S68: 0 | T68: =SUM(R68+S68) -> 0
A70: E | C70: Travel | H70: =SUM(H71:H72) -> 0 | I70: 0 | J70: 0 | K70: 0 | L70: 0 | M70: 0 | N70: 0 | O70: 0 | P70: 0 | Q70: 0 | R70: =SUM(H70+J70+L70+N70+P70) -> 0 | S70: 0 | T70: =SUM(R70+S70) -> 0
C71: 1. Domestic Travel | H71: 0 | I71: 0 | J71: 0 | L71: 0 | N71: 0 | P71: 0 | R71: 0 | S71: 0 | T71: =SUM(R71+S71) -> 0
C72: 2. Foreign Travel | H72: 0 | J72: 0 | L72: 0 | N72: 0 | P72: 0 | R72: 0 | S72: 0 | T72: =SUM(R72+S72) -> 0
A74: F | C74: Participant Support Cost | H74: =SUM(H75:H78) -> 0 | I74: 0 | J74: 0 | K74: 0 | L74: 0 | M74: 0 | N74: 0 | O74: 0 | P74: 0 | Q74: 0 | R74: =SUM(H74+J74+L74+N74+P74) -> 0 | S74: =SUM(I74+K74+M74+O74+Q74) -> 0 | T74: =SUM(R74+S74) -> 0
C75: 1. Stipend | H75: 0 | J75: 0 | L75: 0 | N75: 0 | P75: 0 | R75: =SUM(H75+J75+L75+N75+P75) -> 0 | S75: 0 | T75: =SUM(R75+S75) -> 0
C76: 2. Travel | H76: 0 | J76: 0 | L76: 0 | N76: 0 | P76: 0 | R76: 0 | S76: 0 | T76: =SUM(R76+S76) -> 0
C77: 3. Subsistence | H77: 0 | J77: 0 | L77: 0 | N77: 0 | P77: 0 | R77: 0 | S77: 0 | T77: =SUM(R77+S77) -> 0
C78: 4. Other | H78: 0 | J78: 0 | L78: 0 | N78: 0 | P78: 0 | R78: 0 | S78: 0 | T78: =SUM(R78+S78) -> 0
A80: G | C80: Other Direct Costs | H80: =SUM(H81:H96) -> 0 | I80: 0 | J80: 0 | K80: 0 | L80: 0 | M80: 0 | N80: 0 | O80: 0 | P80: 0 | Q80: 0 | R80: =SUM(H80+J80+L80+N80+P80) -> 0 | S80: =SUM(I80+K80+M80+O80+Q80) -> 0 | T80: =SUM(R80+S80) -> 0
B81: 1 | C81: Materials and Supplies | H81: 0 | J81: 0 | L81: 0 | N81: 0 | P81: 0 | R81: =SUM(H81+J81+L81+N81+P81) -> 0 | S81: 0 | T81: =SUM(R81+S81) -> 0
B82: 2 | C82: Publication cost | H82: 0 | J82: 0 | L82: 0 | N82: 0 | P82: 0 | R82: 0 | S82: 0 | T82: 0
B83: 3 | C83: Consultant/Professional Services | H83: 0 | J83: 0 | L83: 0 | N83: 0 | P83: 0 | R83: =SUM(H83+J83+L83+N83+P83) -> 0 | S83: =SUM(I83+K83+M83+O83+Q83) -> 0 | T83: =SUM(R83+S83) -> 0
B84: 3 | C84: Computing support | H84: 0 | J84: 0 | L84: 0 | N84: 0 | P84: 0 | R84: 0 | S84: 0 | T84: 0
B85: 4 | C85: Equipment/Facility Rental or User Fee | H85: 0 | J85: 0 | L85: 0 | N85: 0 | P85: 0 | R85: 0 | S85: 0 | T85: 0
B86: 4 | C86: Alterations and Renovations (not included in MTDC) | H86: 0 | J86: 0 | L86: 0 | N86: 0 | P86: 0 | R86: =SUM(H86+J86+L86+N86+P86) -> 0 | S86: =SUM(I86+K86+M86+O86+Q86) -> 0 | T86: =SUM(R86+S86) -> 0
B87: 5 | C87: Subcontractor1 - Subject to IDC (first $25,000) | E87: See notes below | H87: 0 | J87: 0 | L87: 0 | N87: 0 | P87: 0 | R87: 0 | S87: 0 | T87: 0
C88: NOT subject to IDC (Amount over $25,000) | H88: 0 | J88: 0 | L88: 0 | N88: 0 | P88: 0 | R88: 0 | S88: 0 | T88: 0
B89: 6 | C89: Subcontractor2 - Subject to IDC (first $25,000) | E89: See notes below | H89: 0 | J89: 0 | L89: 0 | N89: 0 | P89: 0 | R89: 0 | S89: 0 | T89: 0
C90: NOT subject to IDC (Amount over $25,000) | H90: 0 | J90: 0 | L90: 0 | N90: 0 | P90: 0 | R90: 0 | S90: 0 | T90: 0
B91: 7 | C91: Tuition-(most majors) | E91: (Click on "Tuition" sheet) | H91: =Tuition!K6 -> 0 | J91: =Tuition!M6 -> 0 | L91: =Tuition!O6 -> 0 | N91: =Tuition!Q6 -> 0 | P91: =Tuition!S6 -> 0 | R91: 0 | S91: 0 | T91: 0
B92: 8 | C92: Tuition-Engineering & Architecture | E92: (Click on "Tuition" sheet) | H92: =Tuition!K26 -> 0 | J92: =Tuition!M26 -> 0 | L92: =Tuition!O26 -> 0 | N92: =Tuition!Q26 -> 0 | P92: =Tuition!S26 -> 0 | R92: 0 | S92: 0 | T92: 0
B93: 8 | C93: Tuition-Business & STB | E93: (Click on "Tuition" sheet) | H93: =Tuition!K46 -> 0 | J93: =Tuition!M46 -> 0 | L93: =Tuition!O46 -> 0 | N93: =Tuition!Q46 -> 0 | P93: =Tuition!S46 -> 0 | R93: =SUM(H93+J93+L93+N93+P93) -> 0 | S93: =SUM(I93+K93+M93+O93+Q93) -> 0 | T93: =SUM(R93+S93) -> 0
C94: Tuition-Specific Grad Depts | E94: (Click on "Tuition" sheet) | H94: =Tuition!K67 -> 0 | J94: =Tuition!M67 -> 0 | L94: =Tuition!O67 -> 0 | N94: =Tuition!Q67 -> 0 | P94: =Tuition!S67 -> 0 | R94: =H94+J94+L94+N94+P94 -> 0 | S94: =I94+K94+M94+O94+Q94 -> 0 | T94: =S94+R94 -> 0
B95: 9 | C95: Other | H95: 0 | J95: 0 | L95: 0 | N95: 0 | P95: 0 | R95: 0 | S95: 0 | T95: 0
B96: 10 | C96: Other | H96: 0 | J96: 0 | L96: 0 | N96: 0 | P96: 0 | R96: 0 | S96: 0 | T96: 0
C98: Subtotal: Total Direct Costs (TDC) | H98: =H64+H66+H70+H74+H80 -> 0 | I98: =I64+I66+I70+I74+I80 -> 0 | J98: 0 | K98: 0 | L98: 0 | M98: 0 | N98: 0 | O98: 0 | P98: 0 | Q98: 0 | R98: =SUM(H98+J98+L98+N98+P98) -> 0 | S98: =SUM(I98+K98+M98+O98+Q98) -> 0 | T98: =SUM(R98+S98) -> 0
C100: Subtotal: Modified Total Direct Costs | H100: =(H98-H66-H88-H90-H91-H92-H93-H94-H74-H86) -> 0 | I100: 0 | J100: 0 | K100: 0 | L100: 0 | M100: 0 | N100: 0 | O100: 0 | P100: 0 | Q100: 0 | R100: =SUM(H100+J100+L100+N100+P100) -> 0 | S100: =SUM(I100+K100+M100+O100+Q100) -> 0 | T100: =SUM(R100+S100) -> 0
C101: [ MTDC = TDC - Tuition - Equipment - Participant Support Cost ]
A103: H | C103: Indirect Costs | D103: Rate | H103: =SUM(H104:H104) -> 0 | I103: 0 | J103: 0 | K103: 0 | L103: 0 | M103: 0 | N103: 0 | O103: 0 | P103: 0 | Q103: 0 | R103: =SUM(H103+J103+L103+N103+P103) -> 0 | S103: =SUM(I103+K103+M103+O103+Q103) -> 0 | T103: =SUM(R103+S103) -> 0
C104: IDC on MTDC | D104: =IF(G5=U4,"52% 53%",G4) -> 52% 53% | E104: [ IDC = MTDC * Indirect Rate ] | H104: =IF(G5=U4,'F&A Calculation- Sponsor Funds '!I22,IF(G5=U5,H98*G4,G4*H100)) -> 0 | I104: =IF(G5=U4,'F&A Calculations - Cost Share'!I22,IF(G5=U5,I98*G4,G4*I100)) -> 0 | J104: =IF(G5=U4,'F&A Calculation- Sponsor Funds '!I32,IF(G5=U5,J98*G4,G4*J100)) -> 0 | K104: =IF(G5=U4, 'F&A Calculations - Cost Share'!I32,IF(G5=U5,K98*G4,G4*K100)) -> 0 | L104: =IF(G5=U4,'F&A Calculation- Sponsor Funds '!I42,IF(G5=U5,L98*G4,G4*L100)) -> 0 | M104: =IF(G5=U4, 'F&A Calculations - Cost Share'!I42,IF(G5=U5,M98*G4,G4*M100)) -> 0 | N104: =IF(G5=U4,'F&A Calculation- Sponsor Funds '!I52,IF(G5=U5,N98*G4,G4*N100)) -> 0 | O104: =IF(G5=U4, 'F&A Calculations - Cost Share'!I52,IF(G5=U5,O98*G4,G4*O100)) -> 0 | P104: =IF(G5=U4,'F&A Calculation- Sponsor Funds '!I62,IF(G5=U5,P98*G4,G4*P100)) -> 0 | Q104: =IF(G5=U4, 'F&A Calculations - Cost Share'!I62,IF(G5=U5,Q98*G4,G4*Q100)) -> 0 | R104: =SUM(H104+J104+L104+N104+P104) -> 0 | S104: =SUM(I104+K104+M104+O104+Q104) -> 0 | T104: =SUM(R104+S104) -> 0
A107: I | C107: Total Direct + Indirect Costs | H107: =H98+H103 -> 0 | I107: 0 | J107: 0 | K107: 0 | L107: 0 | M107: 0 | N107: 0 | O107: 0 | P107: 0 | Q107: 0 | R107: =SUM(H107+J107+L107+N107+P107) -> 0 | S107: =SUM(I107+K107+M107+O107+Q107) -> 0 | T107: =SUM(R107+S107) -> 0
C113: NOTES:
C115: This budget is completely adjustable. As such, you will need to double check your work and make adjustments in certain cells, such as:
C117: Subcontracts - Verify that only the first $25K of each subcontract is charged IDC. You might need to adjust the MTDC for each year of each subcontract.
C122: Benefits: | H122: Indirect Cost Categories:
C123: A&B | D123: 0.275
C124: C | D124: 0.098 | H124: 52 or 53% | I124: On-Campus Organized Research
C125: D | D125: 0.329 | H125: 0.53 | I125: On Campus Instruction
C126: P | D126: 0.345 | H126: 0.33 | I126: On-Campus Other Sponsored Activities
C127: E | D127: 0.458 | H127: 0.26 | I127: Off-Campus All Programs
C128: XH (Student hourly) | D128: 0.006
C129: XH (Non-Student hourly) | D129: 0.171
C131: Post Doc Salary Range:
C133: http://www.grad-college.iastate.edu/post_doc/policies.php

Sheet Tuition
C1: Tuition Costs | K1: Year 1 | M1: Year 2 | O1: Year 3 | Q1: Year 4 | S1: Year 5
K3: Funds Requested | M3: Funds Requested | O3: Funds Requested | Q3: Funds Requested | S3: Funds Requested
A6: 8 | C6: Graduate Student Tuition (most Majors) | G6: select 1/4-time/1/2-time > > | I6: 1/2-time | K6: =ROUND(IF(I6="1/2-time",K7,K8),0) -> 0 | M6: =ROUND(IF(I6="1/2-time",M7,M8),0) -> 0 | O6: =ROUND(IF(I6="1/2-time",O7,O8),0) -> 0 | Q6: =ROUND(IF(I6="1/2-time",Q7,Q8),0) -> 0 | S6: =ROUND(IF(I6="1/2-time",S7,S8),0) -> 0
A7: 8 | C7: Graduate Student Tuition | I7: Maximum | K7: =+C13*VLOOKUP(K13,$I$91:$Q$117,5,FALSE)+C15*VLOOKUP(K15,$I$91:$Q$117,5,FALSE)+C17*VLOOKUP(K17,$I$91:$Q$117,5,FALSE)+C19*VLOOKUP(K19,$I$91:$Q$117,9,FALSE)+C21*VLOOKUP(K21,$I$91:$Q$117,9,FALSE)+C23*VLOOKUP(K23,$I$91:$Q$117,9,FALSE) -> 0 | M7: =+E13*VLOOKUP(M13,$I$91:$Q$117,5,FALSE)+E15*VLOOKUP(M15,$I$91:$Q$117,5,FALSE)+E17*VLOOKUP(M17,$I$91:$Q$117,5,FALSE)+E19*VLOOKUP(M19,$I$91:$Q$117,9,FALSE)+E21*VLOOKUP(M21,$I$91:$Q$117,9,FALSE)+E23*VLOOKUP(M23,$I$91:$Q$117,9,FALSE) -> 0 | O7: =+F13*VLOOKUP(O13,$I$91:$Q$117,5,FALSE)+F15*VLOOKUP(O15,$I$91:$Q$117,5,FALSE)+F17*VLOOKUP(O17,$I$91:$Q$117,5,FALSE)+F19*VLOOKUP(O19,$I$91:$Q$117,9,FALSE)+F21*VLOOKUP(O21,$I$91:$Q$117,9,FALSE)+F23*VLOOKUP(O23,$I$91:$Q$117,9,FALSE) -> 0 | Q7: =+G13*VLOOKUP(Q13,$I$91:$Q$117,5,FALSE)+G15*VLOOKUP(Q15,$I$91:$Q$117,5,FALSE)+G17*VLOOKUP(Q17,$I$91:$Q$117,5,FALSE)+G19*VLOOKUP(Q19,$I$91:$Q$117,9,FALSE)+G21*VLOOKUP(Q21,$I$91:$Q$117,9,FALSE)+G23*VLOOKUP(Q23,$I$91:$Q$117,9,FALSE) -> 0 | S7: =+H13*VLOOKUP(S13,$I$91:$Q$117,5,FALSE)+H15*VLOOKUP(S15,$I$91:$Q$117,5,FALSE)+H17*VLOOKUP(S17,$I$91:$Q$117,5,FALSE)+H19*VLOOKUP(S19,$I$91:$Q$117,9,FALSE)+H21*VLOOKUP(S21,$I$91:$Q$117,9,FALSE)+H23*VLOOKUP(S23,$I$91:$Q$117,9,FALSE) -> 0
A8: 8 | C8: Graduate Student Tuition | I8: Minimum | K8: =+C13*VLOOKUP(K13,$I$91:$Q$117,3,FALSE)+C15*VLOOKUP(K15,$I$91:$Q$117,3,FALSE)+C17*VLOOKUP(K17,$I$91:$Q$117,3,FALSE)+C19*VLOOKUP(K19,$I$91:$Q$117,7,FALSE)+C21*VLOOKUP(K21,$I$91:$Q$117,7,FALSE)+C23*VLOOKUP(K23,$I$91:$Q$117,7,FALSE) -> 0 | M8: =+E13*VLOOKUP(M13,$I$91:$Q$117,3,FALSE)+E15*VLOOKUP(M15,$I$91:$Q$117,3,FALSE)+E17*VLOOKUP(M17,$I$91:$Q$117,3,FALSE)+E19*VLOOKUP(M19,$I$91:$Q$117,7,FALSE)+E21*VLOOKUP(M21,$I$91:$Q$117,7,FALSE)+E23*VLOOKUP(M23,$I$91:$Q$117,7,FALSE) -> 0 | O8: =+F13*VLOOKUP(O13,$I$91:$Q$117,3,FALSE)+F15*VLOOKUP(O15,$I$91:$Q$117,3,FALSE)+F17*VLOOKUP(O17,$I$91:$Q$117,3,FALSE)+F19*VLOOKUP(O19,$I$91:$Q$117,7,FALSE)+F21*VLOOKUP(O21,$I$91:$Q$117,7,FALSE)+F23*VLOOKUP(O23,$I$91:$Q$117,7,FALSE) -> 0 | Q8: =+G13*VLOOKUP(Q13,$I$91:$Q$117,3,FALSE)+G15*VLOOKUP(Q15,$I$91:$Q$117,3,FALSE)+G17*VLOOKUP(Q17,$I$91:$Q$117,3,FALSE)+G19*VLOOKUP(Q19,$I$91:$Q$117,7,FALSE)+G21*VLOOKUP(Q21,$I$91:$Q$117,7,FALSE)+G23*VLOOKUP(Q23,$I$91:$Q$117,7,FALSE) -> 0 | S8: =+H13*VLOOKUP(S13,$I$91:$Q$117,3,FALSE)+H15*VLOOKUP(S15,$I$91:$Q$117,3,FALSE)+H17*VLOOKUP(S17,$I$91:$Q$117,3,FALSE)+H19*VLOOKUP(S19,$I$91:$Q$117,7,FALSE)+H21*VLOOKUP(S21,$I$91:$Q$117,7,FALSE)+H23*VLOOKUP(S23,$I$91:$Q$117,7,FALSE) -> 0
C11: Graduate Student Tuition (most majors)
C12: Year 1 | E12: Year 2 | F12: Year 3 | G12: Year 4 | H12: Year 5
A13: Masters Students (enter no. of students per term) | I13: Summer | K13: Summer 2019 | M13: Summer 2020 | O13: Summer 2021 | Q13: Summer 2020 | S13: Summer 2021
I15: Fall | K15: Fall 2018 | M15: Fall 2019 | O15: Fall 2020 | Q15: Fall 2020 | S15: Fall 2021
I17: Spring | K17: Spring 2019 | M17: Spring 2020 | O17: Spring 2021 | Q17: Spring 2020 | S17: Spring 2021
A19: PhD Students (enter no. of students per term) | I19: Summer | K19: Summer 2017 | M19: Summer 2018 | O19: Summer 2019 | Q19: Summer 2020 | S19: Summer 2021
I21: Fall | K21: Fall 2017 | M21: Fall 2018 | O21: Fall 2019 | Q21: Fall 2020 | S21: Fall 2021
I23: Spring | K23: Spring 2017 | M23: Spring 2018 | O23: Spring 2019 | Q23: Spring 2020 | S23: Spring 2021
A26: 8 | C26: Graduate Student Tuition (Engineering & Architecture) | G26: select 1/4-time/1/2-time > > | I26: 1/2-time | K26: =ROUND(IF($I$26="1/2-time",K27,K28),0) -> 0 | M26: =ROUND(IF($I$26="1/2-time",M27,M28),0) -> 0 | O26: =ROUND(IF($I$26="1/2-time",O27,O28),0) -> 0 | Q26: =ROUND(IF($I$26="1/2-time",Q27,Q28),0) -> 0 | S26: =ROUND(IF($I$26="1/2-time",S27,S28),0) -> 0
A27: 8 | C27: Graduate Student Tuition | I27: Maximum | K27: =+C33*VLOOKUP(K33,$I$121:$Q$147,5,FALSE)+C35*VLOOKUP(K35,$I$121:$Q$147,5,FALSE)+C37*VLOOKUP(K37,$I$121:$Q$147,5,FALSE)+C39*VLOOKUP(K39,$I$121:$Q$147,9,FALSE)+C41*VLOOKUP(K41,$I$121:$Q$147,9,FALSE)+C43*VLOOKUP(K43,$I$121:$Q$147,9,FALSE) -> 0 | M27: =+E33*VLOOKUP(M33,$I$121:$Q$147,5,FALSE)+E35*VLOOKUP(M35,$I$121:$Q$147,5,FALSE)+E37*VLOOKUP(M37,$I$121:$Q$147,5,FALSE)+E39*VLOOKUP(M39,$I$121:$Q$147,9,FALSE)+E41*VLOOKUP(M41,$I$121:$Q$147,9,FALSE)+E43*VLOOKUP(M43,$I$121:$Q$147,9,FALSE) -> 0 | O27: =+F33*VLOOKUP(O33,$I$121:$Q$147,5,FALSE)+F35*VLOOKUP(O35,$I$121:$Q$147,5,FALSE)+F37*VLOOKUP(O37,$I$121:$Q$147,5,FALSE)+F39*VLOOKUP(O39,$I$121:$Q$147,9,FALSE)+F41*VLOOKUP(O41,$I$121:$Q$147,9,FALSE)+F43*VLOOKUP(O43,$I$121:$Q$147,9,FALSE) -> 0 | Q27: =+G33*VLOOKUP(Q33,$I$121:$Q$147,5,FALSE)+G35*VLOOKUP(Q35,$I$121:$Q$147,5,FALSE)+G37*VLOOKUP(Q37,$I$121:$Q$147,5,FALSE)+G39*VLOOKUP(Q39,$I$121:$Q$147,9,FALSE)+G41*VLOOKUP(Q41,$I$121:$Q$147,9,FALSE)+G43*VLOOKUP(Q43,$I$121:$Q$147,9,FALSE) -> 0 | S27: =+H33*VLOOKUP(S33,$I$121:$Q$147,5,FALSE)+H35*VLOOKUP(S35,$I$121:$Q$147,5,FALSE)+H37*VLOOKUP(S37,$I$121:$Q$147,5,FALSE)+H39*VLOOKUP(S39,$I$121:$Q$147,9,FALSE)+H41*VLOOKUP(S41,$I$121:$Q$147,9,FALSE)+H43*VLOOKUP(S43,$I$121:$Q$147,9,FALSE) -> 0
A28: 8 | C28: Graduate Student Tuition | I28: Minimum | K28: =+C33*VLOOKUP(K33,$I$121:$Q$147,3,FALSE)+C35*VLOOKUP(K35,$I$121:$Q$147,3,FALSE)+C37*VLOOKUP(K37,$I$121:$Q$147,3,FALSE)+C39*VLOOKUP(K39,$I$121:$Q$147,7,FALSE)+C41*VLOOKUP(K41,$I$121:$Q$147,7,FALSE)+C43*VLOOKUP(K43,$I$121:$Q$147,7,FALSE) -> 0 | M28: =+E33*VLOOKUP(M33,$I$121:$Q$147,3,FALSE)+E35*VLOOKUP(M35,$I$121:$Q$147,3,FALSE)+E37*VLOOKUP(M37,$I$121:$Q$147,3,FALSE)+E39*VLOOKUP(M39,$I$121:$Q$147,7,FALSE)+E41*VLOOKUP(M41,$I$121:$Q$147,7,FALSE)+E43*VLOOKUP(M43,$I$121:$Q$147,7,FALSE) -> 0 | O28: =+F33*VLOOKUP(O33,$I$121:$Q$147,3,FALSE)+F35*VLOOKUP(O35,$I$121:$Q$147,3,FALSE)+F37*VLOOKUP(O37,$I$121:$Q$147,3,FALSE)+F39*VLOOKUP(O39,$I$121:$Q$147,7,FALSE)+F41*VLOOKUP(O41,$I$121:$Q$147,7,FALSE)+F43*VLOOKUP(O43,$I$121:$Q$147,7,FALSE) -> 0 | Q28: =+G33*VLOOKUP(Q33,$I$121:$Q$147,3,FALSE)+G35*VLOOKUP(Q35,$I$121:$Q$147,3,FALSE)+G37*VLOOKUP(Q37,$I$121:$Q$147,3,FALSE)+G39*VLOOKUP(Q39,$I$121:$Q$147,7,FALSE)+G41*VLOOKUP(Q41,$I$121:$Q$147,7,FALSE)+G43*VLOOKUP(Q43,$I$121:$Q$147,7,FALSE) -> 0 | S28: =+H33*VLOOKUP(S33,$I$121:$Q$147,3,FALSE)+H35*VLOOKUP(S35,$I$121:$Q$147,3,FALSE)+H37*VLOOKUP(S37,$I$121:$Q$147,3,FALSE)+H39*VLOOKUP(S39,$I$121:$Q$147,7,FALSE)+H41*VLOOKUP(S41,$I$121:$Q$147,7,FALSE)+H43*VLOOKUP(S43,$I$121:$Q$147,7,FALSE) -> 0
C31: Engineering & Architecture Students Only
C32: Year 1 | E32: Year 2 | F32: Year 3 | G32: Year 4 | H32: Year 5
A33: Masters Students (enter no. of students per term) | I33: Summer | K33: Summer 2017 | M33: Summer 2018 | O33: Summer 2019 | Q33: Summer 2020 | S33: Summer 2021
I35: Fall | K35: Fall 2017 | M35: Fall 2018 | O35: Fall 2019 | Q35: Fall 2020 | S35: Fall 2021
I37: Spring | K37: Spring 2017 | M37: Spring 2018 | O37: Spring 2019 | Q37: Spring 2020 | S37: Spring 2021
C38: Year 1 | E38: Year 2 | F38: Year 3 | G38: Year 4 | H38: Year 5
A39: PhD Students (enter no. of students per term) | I39: Summer | K39: Summer 2017 | M39: Summer 2018 | O39: Summer 2019 | Q39: Summer 2020 | S39: Summer 2021
I41: Fall | K41: Fall 2017 | M41: Fall 2018 | O41: Fall 2019 | Q41: Fall 2020 | S41: Fall 2021
I43: Spring | K43: Spring 2017 | M43: Spring 2018 | O43: Spring 2019 | Q43: Spring 2020 | S43: Spring 2021
A46: 8 | C46: Graduate Student Tuition (Business & STB) | G46: select 1/4-time/1/2-time > > | I46: 1/2-time | K46: =ROUND(IF($I$46="1/2-time",K47,K48),0) -> 0 | M46: =ROUND(IF($I$46="1/2-time",M47,M48),0) -> 0 | O46: =ROUND(IF($I$46="1/2-time",O47,O48),0) -> 0 | Q46: =ROUND(IF($I$46="1/2-time",Q47,Q48),0) -> 0 | S46: =ROUND(IF($I$46="1/2-time",S47,S48),0) -> 0
A47: 8 | C47: Graduate Student Tuition | I47: Maximum | K47: =+C53*VLOOKUP(K53,$I$151:$Q$177,5,FALSE)+C55*VLOOKUP(K55,$I$151:$Q$177,5,FALSE)+C57*VLOOKUP(K57,$I$151:$Q$177,5,FALSE)+C59*VLOOKUP(K59,$I$151:$Q$177,9,FALSE)+C61*VLOOKUP(K61,$I$151:$Q$177,9,FALSE)+C63*VLOOKUP(K63,$I$151:$Q$177,9,FALSE) -> 0 | M47: =+E53*VLOOKUP(M53,$I$151:$Q$177,5,FALSE)+E55*VLOOKUP(M55,$I$151:$Q$177,5,FALSE)+E57*VLOOKUP(M57,$I$151:$Q$177,5,FALSE)+E59*VLOOKUP(M59,$I$151:$Q$177,9,FALSE)+E61*VLOOKUP(M61,$I$151:$Q$177,9,FALSE)+E63*VLOOKUP(M63,$I$151:$Q$177,9,FALSE) -> 0 | O47: =+F53*VLOOKUP(O53,$I$151:$Q$177,5,FALSE)+F55*VLOOKUP(O55,$I$151:$Q$177,5,FALSE)+F57*VLOOKUP(O57,$I$151:$Q$177,5,FALSE)+F59*VLOOKUP(O59,$I$151:$Q$177,9,FALSE)+F61*VLOOKUP(O61,$I$151:$Q$177,9,FALSE)+F63*VLOOKUP(O63,$I$151:$Q$177,9,FALSE) -> 0 | Q47: =+G53*VLOOKUP(Q53,$I$151:$Q$177,5,FALSE)+G55*VLOOKUP(Q55,$I$151:$Q$177,5,FALSE)+G57*VLOOKUP(Q57,$I$151:$Q$177,5,FALSE)+G59*VLOOKUP(Q59,$I$151:$Q$177,9,FALSE)+G61*VLOOKUP(Q61,$I$151:$Q$177,9,FALSE)+G63*VLOOKUP(Q63,$I$151:$Q$177,9,FALSE) -> 0 | S47: =+H53*VLOOKUP(S53,$I$151:$Q$177,5,FALSE)+H55*VLOOKUP(S55,$I$151:$Q$177,5,FALSE)+H57*VLOOKUP(S57,$I$151:$Q$177,5,FALSE)+H59*VLOOKUP(S59,$I$151:$Q$177,9,FALSE)+H61*VLOOKUP(S61,$I$151:$Q$177,9,FALSE)+H63*VLOOKUP(S63,$I$151:$Q$177,9,FALSE) -> 0
A48: 8 | C48: Graduate Student Tuition | I48: Minimum | K48: =+C53*VLOOKUP(K53,$I$151:$Q$177,3,FALSE)+C55*VLOOKUP(K55,$I$151:$Q$177,3,FALSE)+C57*VLOOKUP(K57,$I$151:$Q$177,3,FALSE)+C59*VLOOKUP(K59,$I$151:$Q$177,7,FALSE)+C61*VLOOKUP(K61,$I$151:$Q$177,7,FALSE)+C63*VLOOKUP(K63,$I$151:$Q$177,7,FALSE) -> 0 | M48: =+E53*VLOOKUP(M53,$I$151:$Q$177,3,FALSE)+E55*VLOOKUP(M55,$I$151:$Q$177,3,FALSE)+E57*VLOOKUP(M57,$I$151:$Q$177,3,FALSE)+E59*VLOOKUP(M59,$I$151:$Q$177,7,FALSE)+E61*VLOOKUP(M61,$I$151:$Q$177,7,FALSE)+E63*VLOOKUP(M63,$I$151:$Q$177,7,FALSE) -> 0 | O48: =+F53*VLOOKUP(O53,$I$151:$Q$177,3,FALSE)+F55*VLOOKUP(O55,$I$151:$Q$177,3,FALSE)+F57*VLOOKUP(O57,$I$151:$Q$177,3,FALSE)+F59*VLOOKUP(O59,$I$151:$Q$177,7,FALSE)+F61*VLOOKUP(O61,$I$151:$Q$177,7,FALSE)+F63*VLOOKUP(O63,$I$151:$Q$177,7,FALSE) -> 0 | Q48: =+G53*VLOOKUP(Q53,$I$151:$Q$177,3,FALSE)+G55*VLOOKUP(Q55,$I$151:$Q$177,3,FALSE)+G57*VLOOKUP(Q57,$I$151:$Q$177,3,FALSE)+G59*VLOOKUP(Q59,$I$151:$Q$177,7,FALSE)+G61*VLOOKUP(Q61,$I$151:$Q$177,7,FALSE)+G63*VLOOKUP(Q63,$I$151:$Q$177,7,FALSE) -> 0 | S48: =+H53*VLOOKUP(S53,$I$151:$Q$177,3,FALSE)+H55*VLOOKUP(S55,$I$151:$Q$177,3,FALSE)+H57*VLOOKUP(S57,$I$151:$Q$177,3,FALSE)+H59*VLOOKUP(S59,$I$151:$Q$177,7,FALSE)+H61*VLOOKUP(S61,$I$151:$Q$177,7,FALSE)+H63*VLOOKUP(S63,$I$151:$Q$177,7,FALSE) -> 0
C51: Business and STB Students Only
C52: Year 1 | E52: Year 2 | F52: Year 3 | G52: Year 4 | H52: Year 5
A53: Masters Students (enter no. of students per term) | I53: 0 | K53: Summer 2017 | M53: Summer 2018 | O53: Summer 2019 | Q53: Summer 2020 | S53: Summer 2021
I55: Fall | K55: Fall 2017 | M55: Fall 2018 | O55: Fall 2019 | Q55: Fall 2020 | S55: Fall 2021
I57: Spring | K57: Spring 2017 | M57: Spring 2018 | O57: Spring 2019 | Q57: Spring 2020 | S57: Spring 2021
C58: Year 1 | E58: Year 2 | F58: Year 3 | G58: Year 4 | H58: Year 5
A59: PhD Students (enter no. of students per term) | I59: Summer | K59: Summer 2017 | M59: Summer 2018 | O59: Summer 2019 | Q59: Summer 2020 | S59: Summer 2021
I61: Fall | K61: Fall 2017 | M61: Fall 2018 | O61: Fall 2019 | Q61: Fall 2020 | S61: Fall 2021
I63: Spring | K63: Spring 2017 | M63: Spring 2018 | O63: Spring 2019 | Q63: Spring 2020 | S63: Spring 2021
A67: 8 | C67: Graduate Student Tuition (*Specific Graduate Departments) | G67: select 1/4-time/1/2-time > > | I67: 1/2-time | K67: =ROUND(IF($I67="1/2-time",K68,K69),0) -> 0 | M67: =ROUND(IF($I$67="1/2-time",M68,M69),0) -> 0 | O67: =ROUND(IF($I$67="1/2-time",O68,O69),0) -> 0 | Q67: =ROUND(IF($I$67="1/2-time",Q68,Q69),0) -> 0 | S67: =ROUND(IF($I$67="1/2-time",S68,S69),0) -> 0
A68: 8 | C68: Graduate Student Tuition | I68: Maximum | K68: =+C74*VLOOKUP(K74,$I$181:$Q$207,5,FALSE)+C76*VLOOKUP(K76,$I$181:$Q$207,5,FALSE)+C78*VLOOKUP(K78,$I$181:$Q$207,5,FALSE)+C80*VLOOKUP(K80,$I$181:$Q$207,9,FALSE)+C82*VLOOKUP(K82,$I$181:$Q$207,9,FALSE)+C84*VLOOKUP(K84,$I$181:$Q$207,9,FALSE) -> 0 | M68: =+E74*VLOOKUP(M74,$I$181:$Q$207,5,FALSE)+E76*VLOOKUP(M76,$I$181:$Q$207,5,FALSE)+E78*VLOOKUP(M78,$I$181:$Q$207,5,FALSE)+E80*VLOOKUP(M80,$I$181:$Q$207,9,FALSE)+E82*VLOOKUP(M82,$I$181:$Q$207,9,FALSE)+E84*VLOOKUP(M84,$I$181:$Q$207,9,FALSE) -> 0 | O68: =+F74*VLOOKUP(O74,$I$181:$Q$207,5,FALSE)+F76*VLOOKUP(O76,$I$181:$Q$207,5,FALSE)+F78*VLOOKUP(O78,$I$181:$Q$207,5,FALSE)+F80*VLOOKUP(O80,$I$181:$Q$207,9,FALSE)+F82*VLOOKUP(O82,$I$181:$Q$207,9,FALSE)+F84*VLOOKUP(O84,$I$181:$Q$207,9,FALSE) -> 0 | Q68: =+G74*VLOOKUP(Q74,$I$181:$Q$207,5,FALSE)+G76*VLOOKUP(Q76,$I$181:$Q$207,5,FALSE)+G78*VLOOKUP(Q78,$I$181:$Q$207,5,FALSE)+G80*VLOOKUP(Q80,$I$181:$Q$207,9,FALSE)+G82*VLOOKUP(Q82,$I$181:$Q$207,9,FALSE)+G84*VLOOKUP(Q84,$I$181:$Q$207,9,FALSE) -> 0 | S68: =+H74*VLOOKUP(S74,$I$181:$Q$207,5,FALSE)+H76*VLOOKUP(S76,$I$181:$Q$207,5,FALSE)+H78*VLOOKUP(S78,$I$181:$Q$207,5,FALSE)+H80*VLOOKUP(S80,$I$181:$Q$207,9,FALSE)+H82*VLOOKUP(S82,$I$181:$Q$207,9,FALSE)+H84*VLOOKUP(S84,$I$181:$Q$207,9,FALSE) -> 0
A69: 8 | C69: Graduate Student Tuition | I69: Minimum | K69: =+C74*VLOOKUP(K74,$I$181:$Q$207,3,FALSE)+C76*VLOOKUP(K76,$I$181:$Q$207,3,FALSE)+C78*VLOOKUP(K78,$I$181:$Q$207,3,FALSE)+C80*VLOOKUP(K80,$I$181:$Q$207,7,FALSE)+C82*VLOOKUP(K82,$I$181:$Q$207,7,FALSE)+C84*VLOOKUP(K84,$I$181:$Q$207,7,FALSE) -> 0 | M69: =+E74*VLOOKUP(M74,$I$181:$Q$207,3,FALSE)+E76*VLOOKUP(M76,$I$181:$Q$207,3,FALSE)+E78*VLOOKUP(M78,$I$181:$Q$207,3,FALSE)+E80*VLOOKUP(M80,$I$181:$Q$207,7,FALSE)+E82*VLOOKUP(M82,$I$181:$Q$207,7,FALSE)+E84*VLOOKUP(M84,$I$181:$Q$207,7,FALSE) -> 0 | O69: =+F74*VLOOKUP(O74,$I$181:$Q$207,3,FALSE)+F76*VLOOKUP(O76,$I$181:$Q$207,3,FALSE)+F78*VLOOKUP(O78,$I$181:$Q$207,3,FALSE)+F80*VLOOKUP(O80,$I$181:$Q$207,7,FALSE)+F82*VLOOKUP(O82,$I$181:$Q$207,7,FALSE)+F84*VLOOKUP(O84,$I$181:$Q$207,7,FALSE) -> 0 | Q69: =+G74*VLOOKUP(Q74,$I$181:$Q$207,3,FALSE)+G76*VLOOKUP(Q76,$I$181:$Q$207,3,FALSE)+G78*VLOOKUP(Q78,$I$181:$Q$207,3,FALSE)+G80*VLOOKUP(Q80,$I$181:$Q$207,7,FALSE)+G82*VLOOKUP(Q82,$I$181:$Q$207,7,FALSE)+G84*VLOOKUP(Q84,$I$181:$Q$207,7,FALSE) -> 0 | S69: =+H74*VLOOKUP(S74,$I$181:$Q$207,3,FALSE)+H76*VLOOKUP(S76,$I$181:$Q$207,3,FALSE)+H78*VLOOKUP(S78,$I$181:$Q$207,3,FALSE)+H80*VLOOKUP(S80,$I$181:$Q$207,7,FALSE)+H82*VLOOKUP(S82,$I$181:$Q$207,7,FALSE)+H84*VLOOKUP(S84,$I$181:$Q$207,7,FALSE) -> 0
C72: *Specific Graduate Departments
C73: Year 1 | E73: Year 2 | F73: Year 3 | G73: Year 4 | H73: Year 5
A74: Masters Students (enter no. of students per term) | I74: Summer | K74: Summer 2017 | M74: Summer 2018 | O74: Summer 2019 | Q74: Summer 2020 | S74: Summer 2021
I76: Fall | K76: Fall 2017 | M76: Fall 2018 | O76: Fall 2019 | Q76: Fall 2020 | S76: Fall 2021
I78: Spring | K78: Spring 2017 | M78: Spring 2018 | O78: Spring 2019 | Q78: Spring 2020 | S78: Spring 2021
C79: Year 1 | E79: Year 2 | F79: Year 3 | G79: Year 4 | H79: Year 5
A80: PhD Students (enter no. of students per term) | I80: Summer | K80: Summer 2017 | M80: Summer 2018 | O80: Summer 2019 | Q80: Summer 2020 | S80: Summer 2021
I82: Fall | K82: Fall 2017 | M82: Fall 2018 | O82: Fall 2019 | Q82: Fall 2020 | S82: Fall 2021
I84: Spring | K84: Spring 2017 | M84: Spring 2018 | O84: Spring 2019 | Q84: Spring 2020 | S84: Spring 2021
A85: *Animal Sci, Comp Sci, GDCB, Microbiology, Plant Path, BBMB, EEOB, Industrial Design, NREM
K87: Masters - Min | M87: Masters-Max | O87: PhD - Min | Q87: PhD - Max | S87: esc. Rate
S88: 1.042
S89: 1/4-time
S90: 1/2-time
I91: Fall 2017 | K91: =Q91/4 -> 1118 | M91: =O91 -> 2236 | O91: =Q91/2 -> 2236 | Q91: 4472
I92: Fall 2018 | K92: =K91*$S$88 -> 1164.956 | L92: =L91*$S$88 -> 0 | M92: =M91*$S$88 -> 2329.912 | N92: 0 | O92: =Q92/2 -> 2329.912 | P92: 0 | Q92: =Q91*$S$88 -> 4659.824
I93: Fall 2019 | K93: =K92*$S$88 -> 1213.884152 | M93: 2427.768304 | O93: 2427.768304 | Q93: 4855.536608
I94: Fall 2020 | K94: 1264.867286 | M94: 2529.734573 | O94: 2529.734573 | Q94: =Q93*$S$88 -> 5059.469146
I95: Fall 2021 | K95: 1317.991712 | M95: 2635.983425 | O95: 2635.983425 | Q95: =Q94*$S$88 -> 5271.96685
I96: Fall 2022 | K96: 1373.347364 | M96: 2746.694729 | O96: 2746.694729 | Q96: =Q95*$S$88 -> 5493.389457
I97: Fall 2023 | K97: 1431.027954 | M97: 2862.055907 | O97: 2862.055907 | Q97: =Q96*$S$88 -> 5724.111815
I98: Fall 2024 | K98: 1491.131128 | M98: 2982.262255 | O98: 2982.262255 | Q98: 5964.524511
I100: Spring 2017 | K100: =Q100/4 -> 1118 | M100: =Q100/2 -> 2236 | O100: =Q100/2 -> 2236 | Q100: 4472
I101: Spring 2018 | K101: =M101/2 -> 1164.956 | M101: =O101 -> 2329.912 | O101: =Q101/2 -> 2329.912 | Q101: =Q100*$S$88 -> 4659.824
I102: Spring 2019 | K102: =K101*$S$88 -> 1213.884152 | M102: =M101*$S$88 -> 2427.768304 | O102: =O101*$S$88 -> 2427.768304 | Q102: =Q101*$S$88 -> 4855.536608
I103: Spring 2020 | K103: 1264.867286 | M103: 2529.734573 | O103: 2529.734573 | Q103: =Q102*$S$88 -> 5059.469146
I104: Spring 2021 | K104: 1317.991712 | M104: 2635.983425 | O104: 2635.983425 | Q104: 5271.96685
I105: Spring 2022 | K105: 1373.347364 | M105: 2746.694729 | O105: 2746.694729 | Q105: 5493.389457
I106: Spring 2023 | K106: 1431.027954 | M106: 2862.055907 | O106: 2862.055907 | Q106: 5724.111815
I107: Spring 2024 | K107: 1491.131128 | M107: 2982.262255 | O107: 2982.262255 | Q107: 5964.524511
I109: Summer 2017 | K109: =Q109/4 -> 606.25 | M109: =Q109/2 -> 1212.5 | O109: =Q109/2 -> 1212.5 | Q109: 2425
I110: Summer 2018 | K110: =K109*$S$88 -> 631.7125 | M110: =M109*$S$88 -> 1263.425 | O110: =O109*$S$88 -> 1263.425 | Q110: =Q109*S88 -> 2526.85
I111: Summer 2019 | K111: =K110*$S$88 -> 658.244425 | M111: =M110*$S$88 -> 1316.48885 | O111: =O110*$S$88 -> 1316.48885 | Q111: =Q110*$S$88 -> 2632.9777
I112: Summer 2020 | K112: 685.8906909 | M112: 1371.781382 | O112: 1371.781382 | Q112: 2743.562763
I113: Summer 2021 | K113: 714.6980999 | M113: 1429.3962 | O113: 1429.3962 | Q113: 2858.792399
I114: Summer 2022 | K114: 744.7154201 | M114: 1489.43084 | O114: 1489.43084 | Q114: 2978.86168
I115: Summer 2023 | K115: 775.9934677 | M115: 1551.986935 | O115: 1551.986935 | Q115: 3103.973871
I116: Summer 2024 | K116: 808.5851933 | M116: =M115*$S$88 -> 1617.170387 | O116: 1617.170387 | Q116: 3234.340773
I118: Engineering & Architecture students
K119: Masters - Min | M119: Masters-Max | O119: PhD - Min | Q119: PhD - Max
I121: Fall 2017 | K121: =Q121/4 -> 1285 | M121: =O121 -> 2570 | O121: =Q121/2 -> 2570 | Q121: 5140
I122: Fall 2018 | K122: =K121*$S$88 -> 1338.97 | M122: =M121*$S$88 -> 2677.94 | O122: =O121*$S$88 -> 2677.94 | Q122: =Q121*$S$88 -> 5355.88
I123: Fall 2019 | K123: =K122*$S$88 -> 1395.20674 | M123: =M122*$S$88 -> 2790.41348 | O123: =O122*$S$88 -> 2790.41348 | Q123: 5580.82696
I124: Fall 2020 | K124: 1453.805423 | M124: 2907.610846 | O124: 2907.610846 | Q124: 5815.221692
I125: Fall 2021 | K125: 1514.865251 | M125: 3029.730502 | O125: 3029.730502 | Q125: 6059.461003
I126: Fall 2022 | K126: 1578.489591 | M126: 3156.979183 | O126: 3156.979183 | Q126: 6313.958366
I127: Fall 2023 | K127: =K126*$S$88 -> 1644.786154 | M127: 3289.572308 | O127: 3289.572308 | Q127: 6579.144617
I128: Fall 2024 | K128: 1713.867173 | M128: 3427.734345 | O128: 3427.734345 | Q128: 6855.468691
K129: 0 | O129: 0
I130: Spring 2017 | K130: =Q130/4 -> 1285 | M130: =O130 -> 2570 | O130: =Q130/2 -> 2570 | Q130: 5140
I131: Spring 2018 | K131: =M131/2 -> 1338.97 | M131: =O131 -> 2677.94 | O131: =Q131/2 -> 2677.94 | Q131: =Q130*$S$88 -> 5355.88
I132: Spring 2019 | K132: =K131*$S$88 -> 1395.20674 | M132: =M131*$S$88 -> 2790.41348 | O132: =O131*$S$88 -> 2790.41348 | Q132: =Q131*$S$88 -> 5580.82696
I133: Spring 2020 | K133: 1453.805423 | M133: 2907.610846 | O133: 2907.610846 | Q133: 5815.221692
I134: Spring 2021 | K134: 1514.865251 | M134: 3029.730502 | O134: 3029.730502 | Q134: 6059.461003
I135: Spring 2022 | K135: 1578.489591 | M135: 3156.979183 | O135: 3156.979183 | Q135: 6313.958366
I136: Spring 2023 | K136: 1644.786154 | M136: 3289.572308 | O136: 3289.572308 | Q136: 6579.144617
I137: Spring 2024 | K137: 1713.867173 | M137: 3427.734345 | O137: 3427.734345 | Q137: 6855.468691
K138: 0 | O138: 0
I139: Summer 2017 | K139: =Q139/4 -> 700 | M139: =Q139/2 -> 1400 | O139: =Q139/2 -> 1400 | Q139: 2800
I140: Summer 2018 | K140: =K139*$S$88 -> 729.4 | M140: =M139*$S$88 -> 1458.8 | O140: =O139*$S$88 -> 1458.8 | Q140: =Q139*$S$88 -> 2917.6
I141: Summer 2019 | K141: =K140*$S$88 -> 760.0348 | M141: =M140*$S$88 -> 1520.0696 | O141: =O140*$S$88 -> 1520.0696 | Q141: =Q140*$S$88 -> 3040.1392
I142: Summer 2020 | K142: 791.9562616 | M142: 1583.912523 | O142: 1583.912523 | Q142: 3167.825046
I143: Summer 2021 | K143: 825.2184246 | M143: 1650.436849 | O143: 1650.436849 | Q143: 3300.873698
I144: Summer 2022 | K144: 859.8775984 | M144: 1719.755197 | O144: 1719.755197 | Q144: 3439.510394
I145: Summer 2023 | K145: 895.9924576 | M145: 1791.984915 | O145: 1791.984915 | Q145: 3583.96983
I146: Summer 2024 | K146: 933.6241408 | M146: 1867.248282 | O146: 1867.248282 | Q146: 3734.496563
I148: Business & STB
K149: Masters - Min | M149: Masters-Max | O149: PhD - Min | Q149: PhD - Max
I151: Fall 2017 | K151: =Q151/4 -> 1351.5 | M151: =Q151/2 -> 2703 | O151: =Q151/2 -> 2703 | Q151: 5406
I152: Fall 2018 | K152: =K151*$S$88 -> 1408.263 | M152: =M151*$S$88 -> 2816.526 | O152: =O151*$S$88 -> 2816.526 | Q152: =Q151*$S$88 -> 5633.052
I153: Fall 2019 | K153: =K152*$S$88 -> 1467.410046 | M153: =M152*$S$88 -> 2934.820092 | O153: =O152*$S$88 -> 2934.820092 | Q153: =Q152*$S$88 -> 5869.640184
I154: Fall 2020 | K154: 1529.041268 | M154: 3058.082536 | O154: 3058.082536 | Q154: 6116.165072
I155: Fall 2021 | K155: 1593.261001 | M155: 3186.522002 | O155: 3186.522002 | Q155: 6373.044005
I156: Fall 2022 | K156: 1660.177963 | M156: 3320.355926 | O156: 3320.355926 | Q156: 6640.711853
I157: Fall 2023 | K157: 1729.905438 | M157: 3459.810875 | O157: 3459.810875 | Q157: 6919.621751
I158: Fall 2024 | K158: 1802.561466 | M158: 3605.122932 | O158: 3605.122932 | Q158: 7210.245864
K159: 0 | O159: 0
I160: Spring 2017 | K160: =Q160/4 -> 1351.5 | M160: =Q160/2 -> 2703 | O160: =Q160/2 -> 2703 | Q160: 5406
I161: Spring 2018 | K161: =M161/2 -> 1408.263 | M161: =O161 -> 2816.526 | O161: =Q161/2 -> 2816.526 | Q161: =Q160*$S$88 -> 5633.052
I162: Spring 2019 | K162: =K161*$S$88 -> 1467.410046 | M162: =M161*$S$88 -> 2934.820092 | O162: =O161*$S$88 -> 2934.820092 | Q162: =Q161*$S$88 -> 5869.640184
I163: Spring 2020 | K163: 1529.041268 | M163: 3058.082536 | O163: 3058.082536 | Q163: =Q162*$S$88 -> 6116.165072
I164: Spring 2021 | K164: 1593.261001 | M164: 3186.522002 | O164: 3186.522002 | Q164: 6373.044005
I165: Spring 2022 | K165: 1660.177963 | M165: 3320.355926 | O165: 3320.355926 | Q165: 6640.711853
I166: Spring 2023 | K166: 1729.905438 | M166: 3459.810875 | O166: 3459.810875 | Q166: 6919.621751
I167: Spring 2024 | K167: 1802.561466 | M167: 3605.122932 | O167: 3605.122932 | Q167: 7210.245864
K168: 0 | O168: 0
I169: Summer 2017 | K169: =Q169/4 -> 736.25 | M169: =Q169/2 -> 1472.5 | O169: =Q169/2 -> 1472.5 | Q169: 2945
I170: Summer 2018 | K170: =K169*$S$88 -> 767.1725 | M170: =M169*$S$88 -> 1534.345 | O170: =O169*$S$88 -> 1534.345 | Q170: =Q169*$S$88 -> 3068.69
I171: Summer 2019 | K171: =K170*$S$88 -> 799.393745 | M171: =M170*$S$88 -> 1598.78749 | O171: =O170*$S$88 -> 1598.78749 | Q171: =Q170*$S$88 -> 3197.57498
I172: Summer 2020 | K172: 832.9682823 | M172: 1665.936565 | O172: 1665.936565 | Q172: 3331.873129
I173: Summer 2021 | K173: 867.9529501 | M173: 1735.9059 | O173: 1735.9059 | Q173: 3471.811801
I174: Summer 2022 | K174: 904.4069741 | M174: 1808.813948 | O174: 1808.813948 | Q174: 3617.627896
I175: Summer 2023 | K175: 942.392067 | M175: 1884.784134 | O175: 1884.784134 | Q175: 3769.568268
I176: Summer 2024 | K176: 981.9725338 | M176: 1963.945068 | O176: 1963.945068 | Q176: 3927.890135
I178: Specific Graduate Departments
K179: Masters - Min | M179: Masters-Max | O179: PhD - Min | Q179: PhD - Max
I181: Fall 2017 | K181: =Q181/4 -> 1164.75 | M181: =Q181/2 -> 2329.5 | O181: =Q181/2 -> 2329.5 | Q181: 4659
I182: Fall 2018 | K182: =K181*$S$88 -> 1213.6695 | M182: =M181*$S$88 -> 2427.339 | O182: =O181*$S$88 -> 2427.339 | Q182: =Q181*$S$88 -> 4854.678
I183: Fall 2019 | K183: =K182*$S$88 -> 1264.643619 | M183: =M182*$S$88 -> 2529.287238 | O183: =O182*$S$88 -> 2529.287238 | Q183: =Q182*$S$88 -> 5058.574476
I184: Fall 2020 | K184: 1317.758651 | M184: 2635.517302 | O184: 2635.517302 | Q184: 5271.034604
I185: Fall 2021 | K185: 1373.104514 | M185: 2746.209029 | O185: 2746.209029 | Q185: 5492.418057
I186: Fall 2022 | K186: 1430.774904 | M186: 2861.549808 | O186: 2861.549808 | Q186: 5723.099616
I187: Fall 2023 | K187: 1490.86745 | M187: 2981.7349 | O187: 2981.7349 | Q187: 5963.4698
I188: Fall 2024 | K188: 1553.483883 | M188: 3106.967766 | O188: 3106.967766 | Q188: 6213.935531
K189: 0 | O189: 0
I190: Spring 2017 | K190: =Q190/4 -> 1164.75 | M190: =Q190/2 -> 2329.5 | O190: =Q190/2 -> 2329.5 | Q190: 4659
I191: Spring 2018 | K191: =M191/2 -> 1213.6695 | M191: =O191 -> 2427.339 | O191: =Q191/2 -> 2427.339 | Q191: =Q190*$S$88 -> 4854.678
I192: Spring 2019 | K192: =K191*$S$88 -> 1264.643619 | M192: =M191*$S$88 -> 2529.287238 | O192: =O191*$S$88 -> 2529.287238 | Q192: =Q191*$S$88 -> 5058.574476
I193: Spring 2020 | K193: 1317.758651 | M193: 2635.517302 | O193: 2635.517302 | Q193: =Q192*$S$88 -> 5271.034604
I194: Spring 2021 | K194: 1373.104514 | M194: 2746.209029 | O194: 2746.209029 | Q194: 5492.418057
I195: Spring 2022 | K195: 1430.774904 | M195: 2861.549808 | O195: 2861.549808 | Q195: 5723.099616
I196: Spring 2023 | K196: 1490.86745 | M196: 2981.7349 | O196: 2981.7349 | Q196: 5963.4698
I197: Spring 2024 | K197: 1553.483883 | M197: 3106.967766 | O197: 3106.967766 | Q197: 6213.935531
K198: 0 | O198: 0
I199: Summer 2017 | K199: =Q199/4 -> 632.5 | M199: =Q199/2 -> 1265 | O199: =Q199/2 -> 1265 | Q199: 2530
I200: Summer 2018 | K200: =K199*$S$88 -> 659.065 | M200: =M199*$S$88 -> 1318.13 | O200: =O199*$S$88 -> 1318.13 | Q200: =Q199*$S$88 -> 2636.26
I201: Summer 2019 | K201: =K200*$S$88 -> 686.74573 | M201: =M200*$S$88 -> 1373.49146 | O201: =O200*$S$88 -> 1373.49146 | Q201: =Q200*$S$88 -> 2746.98292
I202: Summer 2020 | K202: 715.5890507 | M202: 1431.178101 | O202: 1431.178101 | Q202: 2862.356203
I203: Summer 2021 | K203: 745.6437908 | M203: 1491.287582 | O203: 1491.287582 | Q203: 2982.575163
I204: Summer 2022 | K204: 776.96083 | M204: 1553.92166 | O204: 1553.92166 | Q204: 3107.84332
I205: Summer 2023 | K205: 809.5931849 | M205: 1619.18637 | O205: 1619.18637 | Q205: 3238.372739
I206: Summer 2024 | K206: 843.5960986 | M206: 1687.192197 | O206: 1687.192197 | Q206: 3374.384394

Sheet Travel Details
A1: Only use this sheet tab if the sponsor requires a detailed breakdown of your travel (Ex: NSF and USDA) | M1: Directions:
A2: Complete table; Copy & Paste (special - picture) into the Budget Justification | M2: 1. Complete itemized travel table (note: some sections have formulas; please edit as necessary)
M3: 2. Check Expedia or Travelocity for current airfare and hotel rates
B4: DOMESTIC TRAVEL | M4: 3. Use GSA rates for foreign travel - website : | R4: https://aoprals.state.gov/web920/per_diem.asp
A5: Year | B5: Purpose of Travel/ Destination | C5: No. of Travelers | D5: Estim. Airfare | E5: Nights per Trip | F5: Lodging Rate | G5: Days | H5: Per Diem | I5: Misc.* | J5: TOTAL | K5: COPY TOTALS FROM EACH YEAR TO THE TRAVEL SECTION ON THE YELLOW SUMMARY TAB | M5: 4. Misc* column includes registration fees, mileage to airport, airport parking, shuttles, taxis, etc. (add notes if needed)
A6: 1 | B6: ________ Conference | C6: 1 | D6: 0 | F6: 0 | H6: 40 | I6: 0 | J6: =C6*(((D6)+(E6*F6)+(H6*G6))+(I6)) -> 0 | M6: 5. Enter yearly travel amounts on SUMMARY sheet tab
B7: (Enter Location or TBD) | M7: 6. Copy & Paste the travel table as "Paste, Special, Picture" into the Budget Justification
A8: 2 | B8: ________ Conference | C8: 1 | D8: 0 | F8: 0 | H8: 40 | I8: 0 | J8: =C8*(((D8)+(E8*F8)+(H8*G8))+(I8)) -> 0
B9: (Enter Location or TBD) | M9: MISC:
A10: 3 | B10: ________ Conference | C10: 1 | D10: 0 | F10: 0 | H10: 40 | I10: 0 | J10: =C10*(((D10)+(E10*F10)+(H10*G10))+(I10)) -> 0 | M10: Registration Fees - look at conferenece website for an estimate
B11: (Enter Location or TBD) | M11: Mileage to airport: From AMES to DSM: 84 miles x $0.545 (2018 rate) = | T11: =84*0.545 -> 45.78
A12: 4 | B12: ________ Conference | C12: 1 | D12: 0 | F12: 0 | H12: 40 | I12: 0 | J12: =C12*(((D12)+(E12*F12)+(H12*G12))+(I12)) -> 0 | M12: Parking at airport: up to $10/day for economy
B13: (Enter Location or TBD) | M13: Shuttles/Cabs: estimate up to $20/day, depending on destination
A14: 5 | B14: ________ Conference | C14: 1 | D14: 0 | F14: 0 | H14: 40 | I14: 0 | J14: =C14*(((D14)+(E14*F14)+(H14*G14))+(I14)) -> 0
B15: (Enter Location or TBD)
A16: TOTAL DOMESTIC TRAVEL | J16: =SUM(J6:J15) -> 0
A17: * Miscellaneous: Registration fees, Mileage to Airport, Parking at Airport, Shuttles, Other.
A19: FOREIGN TRAVEL | F19: GSA Rate | H19: GSA Rate | K19: COPY TOTALS FROM EACH YEAR TO THE TRAVEL SECTION ON THE YELLOW SUMMARY TAB | L19: Recommend using GSA rates for Lodging and Meals & Incidentals: https://aoprals.state.gov/web920/per_diem.asp
A20: 1 | B20: ________ Conference | C20: 1 | D20: 0 | F20: 0 | H20: 0 | I20: 0 | J20: =C20*(((D20)+(E20*F20)+(H20*G20))+(I20)) -> 0
B21: (Enter Location or TBD)
A22: 2 | B22: ________ Conference | C22: 1 | D22: 0 | F22: 0 | H22: 0 | I22: 0 | J22: =C22*(((D22)+(E22*F22)+(H22*G22))+(I22)) -> 0 | M22: Use GSA rates (see instruction #3 above)
B23: (Enter Location or TBD)
A24: 3 | B24: ________ Conference | C24: 1 | D24: 0 | F24: 0 | H24: 0 | I24: 0 | J24: =C24*(((D24)+(E24*F24)+(H24*G24))+(I24)) -> 0
B25: (Enter Location or TBD)
A26: 4 | B26: ________ Conference | C26: 1 | D26: 0 | F26: 0 | H26: 0 | I26: 0 | J26: =C26*(((D26)+(E26*F26)+(H26*G26))+(I26)) -> 0
B27: (Enter Location or TBD)
A28: 5 | B28: ________ Conference | C28: 1 | D28: 0 | F28: 0 | H28: 0 | I28: 0 | J28: =C28*(((D28)+(E28*F28)+(H28*G28))+(I28)) -> 0
B29: (Enter Location or TBD)
A30: TOTAL FOREIGN TRAVEL | J30: =SUM(J20:J29) -> 0
A31: * Miscellaneous: Registration fees, Mileage to Airport, Parking at Airport, Shuttles, Other.
A33: TOTAL DOMESTIC AND FOREIGN TRAVEL | J33: =J16+J30 -> 0

Sheet F&A Calculation- Sponsor Funds
D1: Tool to Calculate Split F&A Rates for a Project Period
A3: INSTRUCTIONS: | B3: Use this tool to help you calculate split F&A for budgeting purposes. By entering the Project Budget amount, and start and end dates, this tool will calculate the correct F&A rate for the period.
B4: The only fields needed are the Start Date, End Date, and the Modified Total Direct Cost Amount. This tool will calculate the F&A rate and amount based on the reference table shown.
B6: Please be aware that if your Project period Start and End dates span multiple F&A effective dates, you will need to add the additional effective dates and rates to the Project Activity>FA Rates tab in EFS.
B7: See the job aid: Setting up F&A on a Project Using Split Rates
B9: This tool is set up to accommodate up to 7 separate Project Budget periods and will provide a Grand Total of all budget periods.
D11: Total MTDC | I11: Total F&A
A12: PROJECT GRAND TOTALS: | D12: =D22+D32+D42+D52+D62+D72+D82 -> 0 | I12: =I22+I32+I42+I52+I62+I72+I82 -> 0
A15: 1st Budget Period | B15: Enter | C15: Calculated | D15: Enter Amount: | E15: Calculated | G15: Calculated | I15: Calculated | J15: Calculated | K15: Reference Only Rate Table:
B16: Dates: | C16: Total # Months | D16: Total MTDC for the Period | E16: MTDC Daily Rate | F16: Days at Rate | G16: Months at Rate | H16: Use Rate | I16: F&A Amount | J16: MTDC Amount | K16: Use F&A Rate Effective Date | L16: F&A Rate End | M16: F&A Rate %
A17: Project Start Date | B17: =Summary!H11 -> 2017-07-01 | C17: =ROUND(IF((B17=0),0,(B18-B17))/30,0) -> 12 | D17: =Summary!H100 -> 0 | E17: =IF(ISERROR(D17/F22),0,(D17/F22)) -> 0 | F17: =IF(OR($B$18<$K17,$B$17>$L17),0,(MIN($B$18,$L17)-MAX($B$17,$K17)+1)) -> 0 | G17: =ROUND(IF(ISERROR(F17/365),0,(F17/365)*12),2) -> 0 | H17: =IF(OR($B$18<$K17,$B$17>$L17),0,M17) -> 0 | I17: =(F17*$E$17)*H17 -> 0 | J17: =IF(ISERROR(I17/H17),0,(I17/H17)) -> 0 | K17: 2016-07-01 | L17: 2017-06-30 | M17: 0.52
A18: Project End Date | B18: =Summary!I11 -> 2018-06-30 | F18: =IF(OR($B$18<$K18,$B$17>$L18),0,(MIN($B$18,$L18)-MAX($B$17,$K18)+1)) -> 365 | G18: =ROUND(IF(ISERROR(F18/365),0,(F18/365)*12),2) -> 12 | H18: =IF(OR($B$18<$K18,$B$17>$L18),0,M18) -> 0.52 | I18: =(F18*$E$17)*H18 -> 0 | J18: =IF(ISERROR(I18/H18),0,(I18/H18)) -> 0 | K18: 2017-07-01 | L18: 2018-06-30 | M18: 0.52
F19: =IF(OR($B$18<$K19,$B$17>$L19),0,(MIN($B$18,$L19)-MAX($B$17,$K19)+1)) -> 0 | G19: =ROUND(IF(ISERROR(F19/365),0,(F19/365)*12),2) -> 0 | H19: =IF(OR($B$18<$K19,$B$17>$L19),0,M19) -> 0 | I19: =(F19*$E$17)*H19 -> 0 | J19: =IF(ISERROR(I19/H19),0,(I19/H19)) -> 0 | K19: 2018-07-01 | L19: 2019-06-30 | M19: 0.53
F20: =IF(OR($B$18<$K20,$B$17>$L20),0,(MIN($B$18,$L20)-MAX($B$17,$K20)+1)) -> 0 | G20: =ROUND(IF(ISERROR(F20/365),0,(F20/365)*12),2) -> 0 | H20: =IF(OR($B$18<$K20,$B$17>$L20),0,M20) -> 0 | I20: =(F20*$E$17)*H20 -> 0 | J20: =IF(ISERROR(I20/H20),0,(I20/H20)) -> 0 | K20: 2019-07-01 | L20: 2020-06-30 | M20: 0.53
F21: =IF(OR($B$18<$K21,$B$17>$L21),0,(MIN($B$18,$L21)-MAX($B$17,$K21)+1)) -> 0 | G21: =ROUND(IF(ISERROR(F21/365),0,(F21/365)*12),2) -> 0 | H21: =IF(OR($B$18<$K21,$B$17>$L21),0,M21) -> 0 | I21: =(F21*$E$17)*H21 -> 0 | J21: =IF(ISERROR(I21/H21),0,(I21/H21)) -> 0 | K21: 2020-07-01 | L21: 2030-06-30 | M21: 0.53
B22: Totals: | D22: =SUM(D17:D21) -> 0 | F22: =SUM(F17:F21) -> 365 | G22: =SUM(G17:G21) -> 12 | H22: =AVERAGEIF(H17:H21,"<>0") -> 0.52 | I22: =SUM(I17:I21) -> 0 | J22: =SUM(J17:J21) -> 0
A25: 2nd Budget Period | B25: Enter | C25: Calculated | D25: Enter Amount: | E25: Calculated | G25: Calculated | I25: Calculated | J25: Calculated
B26: Dates: | C26: Total # Months | D26: Total MTDC for the Period | E26: MTDC Daily Rate | F26: Days at Rate | G26: Months at Rate | H26: Use Rate | I26: F&A Amount | J26: MTDC Amount
A27: Project Start Date | B27: =Summary!J11 -> 2018-07-01 | C27: =ROUND(IF((B27=0),0,(B28-B27))/30,0) -> 12 | D27: =Summary!J100 -> 0 | E27: =IF(ISERROR(D27/F32),0,(D27/F32)) -> 0 | F27: =IF(OR($B$28<$K17,$B$27>$L17),0,(MIN($B$28,$L17)-MAX($B$27,$K17)+1)) -> 0 | G27: =ROUND(IF(ISERROR(F27/365),0,(F27/365))*12,0) -> 0 | H27: =IF(OR($B$28<$K17,$B$27>$L17),0,M17) -> 0 | I27: =(F27*$E$27)*H27 -> 0 | J27: =IF(ISERROR(I27/H27),0,(I27/H27)) -> 0
A28: Project End Date | B28: =Summary!K11 -> 2019-06-30 | F28: =IF(OR($B$28<$K18,$B$27>$L18),0,(MIN($B$28,$L18)-MAX($B$27,$K18)+1)) -> 0 | G28: =ROUND(IF(ISERROR(F28/365),0,(F28/365))*12,0) -> 0 | H28: =IF(OR($B$28<$K18,$B$27>$L18),0,M18) -> 0 | I28: =(F28*$E$27)*H28 -> 0 | J28: =IF(ISERROR(I28/H28),0,(I28/H28)) -> 0
F29: =IF(OR($B$28<$K19,$B$27>$L19),0,(MIN($B$28,$L19)-MAX($B$27,$K19)+1)) -> 365 | G29: =ROUND(IF(ISERROR(F29/365),0,(F29/365))*12,0) -> 12 | H29: =IF(OR($B$28<$K19,$B$27>$L19),0,M19) -> 0.53 | I29: =(F29*$E$27)*H29 -> 0 | J29: =IF(ISERROR(I29/H29),0,(I29/H29)) -> 0
F30: =IF(OR($B$28<$K20,$B$27>$L20),0,(MIN($B$28,$L20)-MAX($B$27,$K20)+1)) -> 0 | G30: =ROUND(IF(ISERROR(F30/365),0,(F30/365))*12,0) -> 0 | H30: =IF(OR($B$28<$K20,$B$27>$L20),0,M20) -> 0 | I30: =(F30*$E$27)*H30 -> 0 | J30: =IF(ISERROR(I30/H30),0,(I30/H30)) -> 0
F31: =IF(OR($B$28<$K21,$B$27>$L21),0,(MIN($B$28,$L21)-MAX($B$27,$K21)+1)) -> 0 | G31: =ROUND(IF(ISERROR(F31/365),0,(F31/365))*12,0) -> 0 | H31: =IF(OR($B$28<$K21,$B$27>$L21),0,M21) -> 0 | I31: =(F31*$E$27)*H31 -> 0 | J31: =IF(ISERROR(I31/H31),0,(I31/H31)) -> 0
B32: Totals: | D32: =SUM(D27:D31) -> 0 | F32: =SUM(F27:F31) -> 365 | G32: =SUM(G27:G31) -> 12 | H32: =AVERAGEIF(H27:H31,"<>0") -> 0.53 | I32: =SUM(I27:I31) -> 0 | J32: =SUM(J27:J31) -> 0
A35: 3rd Budget Period | B35: Enter | C35: Calculated | D35: Enter Amount: | E35: Calculated | G35: Calculated | I35: Calculated | J35: Calculated
B36: Dates: | C36: Total # Months | D36: Total MTDC for the Period | E36: MTDC Daily Rate | F36: Days at Rate | G36: Months at Rate | H36: Use Rate | I36: F&A Amount | J36: MTDC Amount
A37: Project Start Date | B37: =Summary!L11 -> 2019-07-01 | C37: =ROUND(IF((B37=0),0,(B38-B37))/30,0) -> 12 | D37: =Summary!L100 -> 0 | E37: =IF(ISERROR(D37/F42),0,(D37/F42)) -> 0 | F37: =IF(OR($B$38<$K17,$B$37>$L17),0,(MIN($B$38,$L17)-MAX($B$37,$K17)+1)) -> 0 | G37: =ROUND(IF(ISERROR(F37/365),0,(F37/365))*12,0) -> 0 | H37: =IF(OR($B$38<$K17,$B$37>$L17),0,M17) -> 0 | I37: =(F37*$E$37)*H37 -> 0 | J37: =IF(ISERROR(I37/H37),0,(I37/H37)) -> 0
A38: Project End Date | B38: =Summary!M11 -> 2020-06-30 | F38: =IF(OR($B$38<$K18,$B$37>$L18),0,(MIN($B$38,$L18)-MAX($B$37,$K18)+1)) -> 0 | G38: =ROUND(IF(ISERROR(F38/365),0,(F38/365))*12,0) -> 0 | H38: =IF(OR($B$38<$K18,$B$37>$L18),0,M18) -> 0 | I38: =(F38*$E$37)*H38 -> 0 | J38: =IF(ISERROR(I38/H38),0,(I38/H38)) -> 0
F39: =IF(OR($B$38<$K19,$B$37>$L19),0,(MIN($B$38,$L19)-MAX($B$37,$K19)+1)) -> 0 | G39: =ROUND(IF(ISERROR(F39/365),0,(F39/365))*12,0) -> 0 | H39: =IF(OR($B$38<$K19,$B$37>$L19),0,M19) -> 0 | I39: =(F39*$E$37)*H39 -> 0 | J39: =IF(ISERROR(I39/H39),0,(I39/H39)) -> 0
F40: =IF(OR($B$38<$K20,$B$37>$L20),0,(MIN($B$38,$L20)-MAX($B$37,$K20)+1)) -> 366 | G40: =ROUND(IF(ISERROR(F40/365),0,(F40/365))*12,0) -> 12 | H40: =IF(OR($B$38<$K20,$B$37>$L20),0,M20) -> 0.53 | I40: =(F40*$E$37)*H40 -> 0 | J40: =IF(ISERROR(I40/H40),0,(I40/H40)) -> 0
F41: =IF(OR($B$38<$K21,$B$37>$L21),0,(MIN($B$38,$L21)-MAX($B$37,$K21)+1)) -> 0 | G41: =ROUND(IF(ISERROR(F41/365),0,(F41/365))*12,0) -> 0 | H41: =IF(OR($B$38<$K21,$B$37>$L21),0,M21) -> 0 | I41: =(F41*$E$37)*H41 -> 0 | J41: =IF(ISERROR(I41/H41),0,(I41/H41)) -> 0
B42: Totals: | D42: =SUM(D37:D41) -> 0 | F42: =SUM(F37:F41) -> 366 | G42: =SUM(G37:G41) -> 12 | H42: =AVERAGEIF(H37:H41,"<>0") -> 0.53 | I42: =SUM(I37:I41) -> 0 | J42: =SUM(J37:J41) -> 0
A45: 4th Budget Period | B45: Enter | C45: Calculated | D45: Enter Amount: | E45: Calculated | G45: Calculated | I45: Calculated | J45: Calculated
B46: Dates: | C46: Total # Months | D46: Total MTDC for the Period | E46: MTDC Daily Rate | F46: Days at Rate | G46: Months at Rate | H46: Use Rate | I46: F&A Amount | J46: MTDC Amount
A47: Project Start Date | B47: =Summary!N11 -> 2020-07-01 | C47: =ROUND(IF((B47=0),0,(B48-B47))/30,0) -> 12 | D47: =Summary!N100 -> 0 | E47: =IF(ISERROR(D47/F52),0,(D47/F52)) -> 0 | F47: =IF(OR($B$48<$K17,$B$47>$L17),0,(MIN($B$48,$L17)-MAX($B$47,$K17)+1)) -> 0 | G47: =ROUND(IF(ISERROR(F47/365),0,(F47/365))*12,0) -> 0 | H47: =IF(OR($B$48<$K17,$B$47>$L17),0,M17) -> 0 | I47: =(F47*$E$47)*H47 -> 0 | J47: =IF(ISERROR(I47/H47),0,(I47/H47)) -> 0
A48: Project End Date | B48: =Summary!O11 -> 2021-06-30 | F48: =IF(OR($B$48<$K18,$B$47>$L18),0,(MIN($B$48,$L18)-MAX($B$47,$K18)+1)) -> 0 | G48: =ROUND(IF(ISERROR(F48/365),0,(F48/365))*12,0) -> 0 | H48: =IF(OR($B$48<$K18,$B$47>$L18),0,M18) -> 0 | I48: =(F48*$E$47)*H48 -> 0 | J48: =IF(ISERROR(I48/H48),0,(I48/H48)) -> 0
F49: =IF(OR($B$48<$K19,$B$47>$L19),0,(MIN($B$48,$L19)-MAX($B$47,$K19)+1)) -> 0 | G49: =ROUND(IF(ISERROR(F49/365),0,(F49/365))*12,0) -> 0 | H49: =IF(OR($B$48<$K19,$B$47>$L19),0,M19) -> 0 | I49: =(F49*$E$47)*H49 -> 0 | J49: =IF(ISERROR(I49/H49),0,(I49/H49)) -> 0
F50: =IF(OR($B$48<$K20,$B$47>$L20),0,(MIN($B$48,$L20)-MAX($B$47,$K20)+1)) -> 0 | G50: =ROUND(IF(ISERROR(F50/365),0,(F50/365))*12,0) -> 0 | H50: =IF(OR($B$48<$K20,$B$47>$L20),0,M20) -> 0 | I50: =(F50*$E$47)*H50 -> 0 | J50: =IF(ISERROR(I50/H50),0,(I50/H50)) -> 0
F51: =IF(OR($B$48<$K21,$B$47>$L21),0,(MIN($B$48,$L21)-MAX($B$47,$K21)+1)) -> 365 | G51: =ROUND(IF(ISERROR(F51/365),0,(F51/365))*12,0) -> 12 | H51: =IF(OR($B$48<$K21,$B$47>$L21),0,M21) -> 0.53 | I51: =(F51*$E$47)*H51 -> 0 | J51: =IF(ISERROR(I51/H51),0,(I51/H51)) -> 0
B52: Totals: | D52: =SUM(D47:D51) -> 0 | F52: =SUM(F47:F51) -> 365 | G52: =SUM(G47:G51) -> 12 | H52: =AVERAGEIF(H47:H51,"<>0") -> 0.53 | I52: =SUM(I47:I51) -> 0 | J52: =SUM(J47:J51) -> 0
A55: 5th Budget Period | B55: Enter | C55: Calculated | D55: Enter Amount: | E55: Calculated | G55: Calculated | I55: Calculated | J55: Calculated
B56: Dates: | C56: Total # Months | D56: Total MTDC for the Period | E56: MTDC Daily Rate | F56: Days at Rate | G56: Months at Rate | H56: Use Rate | I56: F&A Amount | J56: MTDC Amount
A57: Project Start Date | B57: =Summary!P11 -> 2021-07-01 | C57: =ROUND(IF((B57=0),0,(B58-B57))/30,0) -> 12 | D57: =Summary!P100 -> 0 | E57: =IF(ISERROR(D57/F62),0,(D57/F62)) -> 0 | F57: =IF(OR($B$58<$K17,$B$57>$L17),0,(MIN($B$58,$L17)-MAX($B$57,$K17)+1)) -> 0 | G57: =ROUND(IF(ISERROR(F57/365),0,(F57/365))*12,0) -> 0 | H57: =IF(OR($B$58<$K17,$B$57>$L17),0,M17) -> 0 | I57: =(F57*$E$57)*H57 -> 0 | J57: =IF(ISERROR(I57/H57),0,(I57/H57)) -> 0
A58: Project End Date | B58: =Summary!Q11 -> 2022-06-30 | F58: =IF(OR($B$58<$K18,$B$57>$L18),0,(MIN($B$58,$L18)-MAX($B$57,$K18)+1)) -> 0 | G58: =ROUND(IF(ISERROR(F58/365),0,(F58/365))*12,0) -> 0 | H58: =IF(OR($B$58<$K18,$B$57>$L18),0,M18) -> 0 | I58: =(F58*$E$57)*H58 -> 0 | J58: =IF(ISERROR(I58/H58),0,(I58/H58)) -> 0
F59: =IF(OR($B$58<$K19,$B$57>$L19),0,(MIN($B$58,$L19)-MAX($B$57,$K19)+1)) -> 0 | G59: =ROUND(IF(ISERROR(F59/365),0,(F59/365))*12,0) -> 0 | H59: =IF(OR($B$58<$K19,$B$57>$L19),0,M19) -> 0 | I59: =(F59*$E$57)*H59 -> 0 | J59: =IF(ISERROR(I59/H59),0,(I59/H59)) -> 0
F60: =IF(OR($B$58<$K20,$B$57>$L20),0,(MIN($B$58,$L20)-MAX($B$57,$K20)+1)) -> 0 | G60: =ROUND(IF(ISERROR(F60/365),0,(F60/365))*12,0) -> 0 | H60: =IF(OR($B$58<$K20,$B$57>$L20),0,M20) -> 0 | I60: =(F60*$E$57)*H60 -> 0 | J60: =IF(ISERROR(I60/H60),0,(I60/H60)) -> 0
F61: =IF(OR($B$58<$K21,$B$57>$L21),0,(MIN($B$58,$L21)-MAX($B$57,$K21)+1)) -> 365 | G61: =ROUND(IF(ISERROR(F61/365),0,(F61/365))*12,0) -> 12 | H61: =IF(OR($B$58<$K21,$B$57>$L21),0,M21) -> 0.53 | I61: =(F61*$E$57)*H61 -> 0 | J61: =IF(ISERROR(I61/H61),0,(I61/H61)) -> 0
B62: Totals: | D62: =SUM(D57:D61) -> 0 | F62: =SUM(F57:F61) -> 365 | G62: =SUM(G57:G61) -> 12 | H62: =AVERAGEIF(H57:H61,"<>0") -> 0.53 | I62: =SUM(I57:I61) -> 0 | J62: =SUM(J57:J61) -> 0
A65: 6th Budget Period | B65: Enter | C65: Calculated | D65: Enter Amount: | E65: Calculated | G65: Calculated | I65: Calculated | J65: Calculated
B66: Dates: | C66: Total # Months | D66: Total MTDC for the Period | E66: MTDC Daily Rate | F66: Days at Rate | G66: Months at Rate | H66: Use Rate | I66: F&A Amount | J66: MTDC Amount
A67: Project Start Date | C67: =ROUND(IF((B67=0),0,(B68-B67))/30,0) -> 0 | D67: 0 | E67: =IF(ISERROR(D67/F72),0,(D67/F72)) -> 0 | F67: =IF(OR($B$68<$K17,$B$67>$L17),0,(MIN($B$68,$L17)-MAX($B$67,$K17)+1)) -> 0 | G67: =ROUND(IF(ISERROR(F67/365),0,(F67/365))*12,0) -> 0 | H67: =IF(OR($B$68<$K17,$B$67>$L17),0,M17) -> 0 | I67: =(F67*$E$67)*H67 -> 0 | J67: =IF(ISERROR(I67/H67),0,(I67/H67)) -> 0
A68: Project End Date | F68: =IF(OR($B$68<$K18,$B$67>$L18),0,(MIN($B$68,$L18)-MAX($B$67,$K18)+1)) -> 0 | G68: =ROUND(IF(ISERROR(F68/365),0,(F68/365))*12,0) -> 0 | H68: =IF(OR($B$68<$K18,$B$67>$L18),0,M18) -> 0 | I68: =(F68*$E$67)*H68 -> 0 | J68: =IF(ISERROR(I68/H68),0,(I68/H68)) -> 0
F69: =IF(OR($B$68<$K19,$B$67>$L19),0,(MIN($B$68,$L19)-MAX($B$67,$K19)+1)) -> 0 | G69: =ROUND(IF(ISERROR(F69/365),0,(F69/365))*12,0) -> 0 | H69: =IF(OR($B$68<$K19,$B$67>$L19),0,M19) -> 0 | I69: =(F69*$E$67)*H69 -> 0 | J69: =IF(ISERROR(I69/H69),0,(I69/H69)) -> 0
F70: =IF(OR($B$68<$K20,$B$67>$L20),0,(MIN($B$68,$L20)-MAX($B$67,$K20)+1)) -> 0 | G70: =ROUND(IF(ISERROR(F70/365),0,(F70/365))*12,0) -> 0 | H70: =IF(OR($B$68<$K20,$B$67>$L20),0,M20) -> 0 | I70: =(F70*$E$67)*H70 -> 0 | J70: =IF(ISERROR(I70/H70),0,(I70/H70)) -> 0
F71: =IF(OR($B$68<$K21,$B$67>$L21),0,(MIN($B$68,$L21)-MAX($B$67,$K21)+1)) -> 0 | G71: =ROUND(IF(ISERROR(F71/365),0,(F71/365))*12,0) -> 0 | H71: =IF(OR($B$68<$K21,$B$67>$L21),0,M21) -> 0 | I71: =(F71*$E$67)*H71 -> 0 | J71: =IF(ISERROR(I71/H71),0,(I71/H71)) -> 0
B72: Totals: | D72: =SUM(D67:D71) -> 0 | F72: =SUM(F67:F71) -> 0 | G72: =SUM(G67:G71) -> 0 | H72: =AVERAGEIF(H67:H71,"<>0") ->  | I72: =SUM(I67:I71) -> 0 | J72: =SUM(J67:J71) -> 0
A75: 7th Budget Period | B75: Enter | C75: Calculated | D75: Enter Amount: | E75: Calculated | G75: Calculated | I75: Calculated | J75: Calculated
B76: Dates: | C76: Total # Months | D76: Total MTDC for the Period | E76: MTDC Daily Rate | F76: Days at Rate | G76: Months at Rate | H76: Use Rate | I76: F&A Amount | J76: MTDC Amount
A77: Project Start Date | C77: =ROUND(IF((B77=0),0,(B78-B77))/30,0) -> 0 | D77: 0 | E77: =IF(ISERROR(D77/F82),0,(D77/F82)) -> 0 | F77: =IF(OR($B$78<$K17,$B$77>$L17),0,(MIN($B$78,$L17)-MAX($B$77,$K17)+1)) -> 0 | G77: =ROUND(IF(ISERROR(F77/365),0,(F77/365))*12,0) -> 0 | H77: =IF(OR($B$78<$K17,$B$77>$L17),0,M17) -> 0 | I77: =(F77*$E$77)*H77 -> 0 | J77: =IF(ISERROR(I77/H77),0,(I77/H77)) -> 0
A78: Project End Date | F78: =IF(OR($B$78<$K18,$B$77>$L18),0,(MIN($B$78,$L18)-MAX($B$77,$K18)+1)) -> 0 | G78: =ROUND(IF(ISERROR(F78/365),0,(F78/365))*12,0) -> 0 | H78: =IF(OR($B$78<$K18,$B$77>$L18),0,M18) -> 0 | I78: =(F78*$E$77)*H78 -> 0 | J78: =IF(ISERROR(I78/H78),0,(I78/H78)) -> 0
F79: =IF(OR($B$78<$K19,$B$77>$L19),0,(MIN($B$78,$L19)-MAX($B$77,$K19)+1)) -> 0 | G79: =ROUND(IF(ISERROR(F79/365),0,(F79/365))*12,0) -> 0 | H79: =IF(OR($B$78<$K19,$B$77>$L19),0,M19) -> 0 | I79: =(F79*$E$77)*H79 -> 0 | J79: =IF(ISERROR(I79/H79),0,(I79/H79)) -> 0
F80: =IF(OR($B$78<$K20,$B$77>$L20),0,(MIN($B$78,$L20)-MAX($B$77,$K20)+1)) -> 0 | G80: =ROUND(IF(ISERROR(F80/365),0,(F80/365))*12,0) -> 0 | H80: =IF(OR($B$78<$K20,$B$77>$L20),0,M20) -> 0 | I80: =(F80*$E$77)*H80 -> 0 | J80: =IF(ISERROR(I80/H80),0,(I80/H80)) -> 0
F81: =IF(OR($B$78<$K21,$B$77>$L21),0,(MIN($B$78,$L21)-MAX($B$77,$K21)+1)) -> 0 | G81: =ROUND(IF(ISERROR(F81/365),0,(F81/365))*12,0) -> 0 | H81: =IF(OR($B$78<$K21,$B$77>$L21),0,M21) -> 0 | I81: =(F81*$E$77)*H81 -> 0 | J81: =IF(ISERROR(I81/H81),0,(I81/H81)) -> 0
B82: Totals: | D82: =SUM(D77:D81) -> 0 | F82: =SUM(F77:F81) -> 0 | G82: =SUM(G77:G81) -> 0 | H82: =AVERAGEIF(H77:H81,"<>0") ->  | I82: =SUM(I77:I81) -> 0 | J82: =SUM(J77:J81) -> 0

Sheet F&A Calculations - Cost Share
D1: Tool to Calculate Split F&A Rates for a Project Period
A3: INSTRUCTIONS: | B3: Use this tool to help you calculate split F&A for budgeting purposes. By entering the Project Budget amount, and start and end dates, this tool will calculate the correct F&A rate for the period.
B4: The only fields needed are the Start Date, End Date, and the Modified Total Direct Cost Amount. This tool will calculate the F&A rate and amount based on the reference table shown.
B6: Please be aware that if your Project period Start and End dates span multiple F&A effective dates, you will need to add the additional effective dates and rates to the Project Activity>FA Rates tab in EFS.
B7: See the job aid: Setting up F&A on a Project Using Split Rates
B9: This tool is set up to accommodate up to 7 separate Project Budget periods and will provide a Grand Total of all budget periods.
D11: Total MTDC | I11: Total F&A
A12: PROJECT GRAND TOTALS: | D12: =D22+D32+D42+D52+D62+D72+D82 -> 0 | I12: =I22+I32+I42+I52+I62+I72+I82 -> 0
A15: 1st Budget Period | B15: Enter | C15: Calculated | D15: Enter Amount: | E15: Calculated | G15: Calculated | I15: Calculated | J15: Calculated | K15: Reference Only Rate Table:
B16: Dates: | C16: Total # Months | D16: Total MTDC for the Period | E16: MTDC Daily Rate | F16: Days at Rate | G16: Months at Rate | H16: Use Rate | I16: F&A Amount | J16: MTDC Amount | K16: Use F&A Rate Effective Date | L16: F&A Rate End | M16: F&A Rate %
A17: Project Start Date | B17: =Summary!H11 -> 2017-07-01 | C17: =ROUND(IF((B17=0),0,(B18-B17))/30,0) -> 12 | D17: =Summary!I100 -> 0 | E17: =IF(ISERROR(D17/F22),0,(D17/F22)) -> 0 | F17: =IF(OR($B$18<$K17,$B$17>$L17),0,(MIN($B$18,$L17)-MAX($B$17,$K17)+1)) -> 0 | G17: =ROUND(IF(ISERROR(F17/365),0,(F17/365)*12),2) -> 0 | H17: =IF(OR($B$18<$K17,$B$17>$L17),0,M17) -> 0 | I17: =(F17*$E$17)*H17 -> 0 | J17: =IF(ISERROR(I17/H17),0,(I17/H17)) -> 0 | K17: 2016-07-01 | L17: 2017-06-30 | M17: 0.52
A18: Project End Date | B18: =Summary!I11 -> 2018-06-30 | F18: =IF(OR($B$18<$K18,$B$17>$L18),0,(MIN($B$18,$L18)-MAX($B$17,$K18)+1)) -> 365 | G18: =ROUND(IF(ISERROR(F18/365),0,(F18/365)*12),2) -> 12 | H18: =IF(OR($B$18<$K18,$B$17>$L18),0,M18) -> 0.52 | I18: =(F18*$E$17)*H18 -> 0 | J18: =IF(ISERROR(I18/H18),0,(I18/H18)) -> 0 | K18: 2017-07-01 | L18: 2018-06-30 | M18: 0.52
F19: =IF(OR($B$18<$K19,$B$17>$L19),0,(MIN($B$18,$L19)-MAX($B$17,$K19)+1)) -> 0 | G19: =ROUND(IF(ISERROR(F19/365),0,(F19/365)*12),2) -> 0 | H19: =IF(OR($B$18<$K19,$B$17>$L19),0,M19) -> 0 | I19: =(F19*$E$17)*H19 -> 0 | J19: =IF(ISERROR(I19/H19),0,(I19/H19)) -> 0 | K19: 2018-07-01 | L19: 2019-06-30 | M19: 0.53
F20: =IF(OR($B$18<$K20,$B$17>$L20),0,(MIN($B$18,$L20)-MAX($B$17,$K20)+1)) -> 0 | G20: =ROUND(IF(ISERROR(F20/365),0,(F20/365)*12),2) -> 0 | H20: =IF(OR($B$18<$K20,$B$17>$L20),0,M20) -> 0 | I20: =(F20*$E$17)*H20 -> 0 | J20: =IF(ISERROR(I20/H20),0,(I20/H20)) -> 0 | K20: 2019-07-01 | L20: 2020-06-30 | M20: 0.53
F21: =IF(OR($B$18<$K21,$B$17>$L21),0,(MIN($B$18,$L21)-MAX($B$17,$K21)+1)) -> 0 | G21: =ROUND(IF(ISERROR(F21/365),0,(F21/365)*12),2) -> 0 | H21: =IF(OR($B$18<$K21,$B$17>$L21),0,M21) -> 0 | I21: =(F21*$E$17)*H21 -> 0 | J21: =IF(ISERROR(I21/H21),0,(I21/H21)) -> 0 | K21: 2020-07-01 | L21: 2030-06-30 | M21: 0.53
B22: Totals: | D22: =SUM(D17:D21) -> 0 | F22: =SUM(F17:F21) -> 365 | G22: =SUM(G17:G21) -> 12 | H22: =AVERAGEIF(H17:H21,"<>0") -> 0.52 | I22: =SUM(I17:I21) -> 0 | J22: =SUM(J17:J21) -> 0
A25: 2nd Budget Period | B25: Enter | C25: Calculated | D25: Enter Amount: | E25: Calculated | G25: Calculated | I25: Calculated | J25: Calculated
B26: Dates: | C26: Total # Months | D26: Total MTDC for the Period | E26: MTDC Daily Rate | F26: Days at Rate | G26: Months at Rate | H26: Use Rate | I26: F&A Amount | J26: MTDC Amount
A27: Project Start Date | B27: =Summary!J11 -> 2018-07-01 | C27: =ROUND(IF((B27=0),0,(B28-B27))/30,0) -> 12 | D27: =Summary!K100 -> 0 | E27: =IF(ISERROR(D27/F32),0,(D27/F32)) -> 0 | F27: =IF(OR($B$28<$K17,$B$27>$L17),0,(MIN($B$28,$L17)-MAX($B$27,$K17)+1)) -> 0 | G27: =ROUND(IF(ISERROR(F27/365),0,(F27/365))*12,0) -> 0 | H27: =IF(OR($B$28<$K17,$B$27>$L17),0,M17) -> 0 | I27: =(F27*$E$27)*H27 -> 0 | J27: =IF(ISERROR(I27/H27),0,(I27/H27)) -> 0
A28: Project End Date | B28: =Summary!K11 -> 2019-06-30 | F28: =IF(OR($B$28<$K18,$B$27>$L18),0,(MIN($B$28,$L18)-MAX($B$27,$K18)+1)) -> 0 | G28: =ROUND(IF(ISERROR(F28/365),0,(F28/365))*12,0) -> 0 | H28: =IF(OR($B$28<$K18,$B$27>$L18),0,M18) -> 0 | I28: =(F28*$E$27)*H28 -> 0 | J28: =IF(ISERROR(I28/H28),0,(I28/H28)) -> 0
F29: =IF(OR($B$28<$K19,$B$27>$L19),0,(MIN($B$28,$L19)-MAX($B$27,$K19)+1)) -> 365 | G29: =ROUND(IF(ISERROR(F29/365),0,(F29/365))*12,0) -> 12 | H29: =IF(OR($B$28<$K19,$B$27>$L19),0,M19) -> 0.53 | I29: =(F29*$E$27)*H29 -> 0 | J29: =IF(ISERROR(I29/H29),0,(I29/H29)) -> 0
F30: =IF(OR($B$28<$K20,$B$27>$L20),0,(MIN($B$28,$L20)-MAX($B$27,$K20)+1)) -> 0 | G30: =ROUND(IF(ISERROR(F30/365),0,(F30/365))*12,0) -> 0 | H30: =IF(OR($B$28<$K20,$B$27>$L20),0,M20) -> 0 | I30: =(F30*$E$27)*H30 -> 0 | J30: =IF(ISERROR(I30/H30),0,(I30/H30)) -> 0
F31: =IF(OR($B$28<$K21,$B$27>$L21),0,(MIN($B$28,$L21)-MAX($B$27,$K21)+1)) -> 0 | G31: =ROUND(IF(ISERROR(F31/365),0,(F31/365))*12,0) -> 0 | H31: =IF(OR($B$28<$K21,$B$27>$L21),0,M21) -> 0 | I31: =(F31*$E$27)*H31 -> 0 | J31: =IF(ISERROR(I31/H31),0,(I31/H31)) -> 0
B32: Totals: | D32: =SUM(D27:D31) -> 0 | F32: =SUM(F27:F31) -> 365 | G32: =SUM(G27:G31) -> 12 | H32: =AVERAGEIF(H27:H31,"<>0") -> 0.53 | I32: =SUM(I27:I31) -> 0 | J32: =SUM(J27:J31) -> 0
A35: 3rd Budget Period | B35: Enter | C35: Calculated | D35: Enter Amount: | E35: Calculated | G35: Calculated | I35: Calculated | J35: Calculated
B36: Dates: | C36: Total # Months | D36: Total MTDC for the Period | E36: MTDC Daily Rate | F36: Days at Rate | G36: Months at Rate | H36: Use Rate | I36: F&A Amount | J36: MTDC Amount
A37: Project Start Date | B37: =Summary!L11 -> 2019-07-01 | C37: =ROUND(IF((B37=0),0,(B38-B37))/30,0) -> 12 | D37: =Summary!M100 -> 0 | E37: =IF(ISERROR(D37/F42),0,(D37/F42)) -> 0 | F37: =IF(OR($B$38<$K17,$B$37>$L17),0,(MIN($B$38,$L17)-MAX($B$37,$K17)+1)) -> 0 | G37: =ROUND(IF(ISERROR(F37/365),0,(F37/365))*12,0) -> 0 | H37: =IF(OR($B$38<$K17,$B$37>$L17),0,M17) -> 0 | I37: =(F37*$E$37)*H37 -> 0 | J37: =IF(ISERROR(I37/H37),0,(I37/H37)) -> 0
A38: Project End Date | B38: =Summary!M11 -> 2020-06-30 | F38: =IF(OR($B$38<$K18,$B$37>$L18),0,(MIN($B$38,$L18)-MAX($B$37,$K18)+1)) -> 0 | G38: =ROUND(IF(ISERROR(F38/365),0,(F38/365))*12,0) -> 0 | H38: =IF(OR($B$38<$K18,$B$37>$L18),0,M18) -> 0 | I38: =(F38*$E$37)*H38 -> 0 | J38: =IF(ISERROR(I38/H38),0,(I38/H38)) -> 0
F39: =IF(OR($B$38<$K19,$B$37>$L19),0,(MIN($B$38,$L19)-MAX($B$37,$K19)+1)) -> 0 | G39: =ROUND(IF(ISERROR(F39/365),0,(F39/365))*12,0) -> 0 | H39: =IF(OR($B$38<$K19,$B$37>$L19),0,M19) -> 0 | I39: =(F39*$E$37)*H39 -> 0 | J39: =IF(ISERROR(I39/H39),0,(I39/H39)) -> 0
F40: =IF(OR($B$38<$K20,$B$37>$L20),0,(MIN($B$38,$L20)-MAX($B$37,$K20)+1)) -> 366 | G40: =ROUND(IF(ISERROR(F40/365),0,(F40/365))*12,0) -> 12 | H40: =IF(OR($B$38<$K20,$B$37>$L20),0,M20) -> 0.53 | I40: =(F40*$E$37)*H40 -> 0 | J40: =IF(ISERROR(I40/H40),0,(I40/H40)) -> 0
F41: =IF(OR($B$38<$K21,$B$37>$L21),0,(MIN($B$38,$L21)-MAX($B$37,$K21)+1)) -> 0 | G41: =ROUND(IF(ISERROR(F41/365),0,(F41/365))*12,0) -> 0 | H41: =IF(OR($B$38<$K21,$B$37>$L21),0,M21) -> 0 | I41: =(F41*$E$37)*H41 -> 0 | J41: =IF(ISERROR(I41/H41),0,(I41/H41)) -> 0
B42: Totals: | D42: =SUM(D37:D41) -> 0 | F42: =SUM(F37:F41) -> 366 | G42: =SUM(G37:G41) -> 12 | H42: =AVERAGEIF(H37:H41,"<>0") -> 0.53 | I42: =SUM(I37:I41) -> 0 | J42: =SUM(J37:J41) -> 0
A45: 4th Budget Period | B45: Enter | C45: Calculated | D45: Enter Amount: | E45: Calculated | G45: Calculated | I45: Calculated | J45: Calculated
B46: Dates: | C46: Total # Months | D46: Total MTDC for the Period | E46: MTDC Daily Rate | F46: Days at Rate | G46: Months at Rate | H46: Use Rate | I46: F&A Amount | J46: MTDC Amount
A47: Project Start Date | B47: =Summary!N11 -> 2020-07-01 | C47: =ROUND(IF((B47=0),0,(B48-B47))/30,0) -> 12 | D47: =Summary!O100 -> 0 | E47: =IF(ISERROR(D47/F52),0,(D47/F52)) -> 0 | F47: =IF(OR($B$48<$K17,$B$47>$L17),0,(MIN($B$48,$L17)-MAX($B$47,$K17)+1)) -> 0 | G47: =ROUND(IF(ISERROR(F47/365),0,(F47/365))*12,0) -> 0 | H47: =IF(OR($B$48<$K17,$B$47>$L17),0,M17) -> 0 | I47: =(F47*$E$47)*H47 -> 0 | J47: =IF(ISERROR(I47/H47),0,(I47/H47)) -> 0
A48: Project End Date | B48: =Summary!O11 -> 2021-06-30 | F48: =IF(OR($B$48<$K18,$B$47>$L18),0,(MIN($B$48,$L18)-MAX($B$47,$K18)+1)) -> 0 | G48: =ROUND(IF(ISERROR(F48/365),0,(F48/365))*12,0) -> 0 | H48: =IF(OR($B$48<$K18,$B$47>$L18),0,M18) -> 0 | I48: =(F48*$E$47)*H48 -> 0 | J48: =IF(ISERROR(I48/H48),0,(I48/H48)) -> 0
F49: =IF(OR($B$48<$K19,$B$47>$L19),0,(MIN($B$48,$L19)-MAX($B$47,$K19)+1)) -> 0 | G49: =ROUND(IF(ISERROR(F49/365),0,(F49/365))*12,0) -> 0 | H49: =IF(OR($B$48<$K19,$B$47>$L19),0,M19) -> 0 | I49: =(F49*$E$47)*H49 -> 0 | J49: =IF(ISERROR(I49/H49),0,(I49/H49)) -> 0
F50: =IF(OR($B$48<$K20,$B$47>$L20),0,(MIN($B$48,$L20)-MAX($B$47,$K20)+1)) -> 0 | G50: =ROUND(IF(ISERROR(F50/365),0,(F50/365))*12,0) -> 0 | H50: =IF(OR($B$48<$K20,$B$47>$L20),0,M20) -> 0 | I50: =(F50*$E$47)*H50 -> 0 | J50: =IF(ISERROR(I50/H50),0,(I50/H50)) -> 0
F51: =IF(OR($B$48<$K21,$B$47>$L21),0,(MIN($B$48,$L21)-MAX($B$47,$K21)+1)) -> 365 | G51: =ROUND(IF(ISERROR(F51/365),0,(F51/365))*12,0) -> 12 | H51: =IF(OR($B$48<$K21,$B$47>$L21),0,M21) -> 0.53 | I51: =(F51*$E$47)*H51 -> 0 | J51: =IF(ISERROR(I51/H51),0,(I51/H51)) -> 0
B52: Totals: | D52: =SUM(D47:D51) -> 0 | F52: =SUM(F47:F51) -> 365 | G52: =SUM(G47:G51) -> 12 | H52: =AVERAGEIF(H47:H51,"<>0") -> 0.53 | I52: =SUM(I47:I51) -> 0 | J52: =SUM(J47:J51) -> 0
A55: 5th Budget Period | B55: Enter | C55: Calculated | D55: Enter Amount: | E55: Calculated | G55: Calculated | I55: Calculated | J55: Calculated
B56: Dates: | C56: Total # Months | D56: Total MTDC for the Period | E56: MTDC Daily Rate | F56: Days at Rate | G56: Months at Rate | H56: Use Rate | I56: F&A Amount | J56: MTDC Amount
A57: Project Start Date | B57: =Summary!P11 -> 2021-07-01 | C57: =ROUND(IF((B57=0),0,(B58-B57))/30,0) -> 12 | D57: =Summary!Q100 -> 0 | E57: =IF(ISERROR(D57/F62),0,(D57/F62)) -> 0 | F57: =IF(OR($B$58<$K17,$B$57>$L17),0,(MIN($B$58,$L17)-MAX($B$57,$K17)+1)) -> 0 | G57: =ROUND(IF(ISERROR(F57/365),0,(F57/365))*12,0) -> 0 | H57: =IF(OR($B$58<$K17,$B$57>$L17),0,M17) -> 0 | I57: =(F57*$E$57)*H57 -> 0 | J57: =IF(ISERROR(I57/H57),0,(I57/H57)) -> 0
A58: Project End Date | B58: =Summary!Q11 -> 2022-06-30 | F58: =IF(OR($B$58<$K18,$B$57>$L18),0,(MIN($B$58,$L18)-MAX($B$57,$K18)+1)) -> 0 | G58: =ROUND(IF(ISERROR(F58/365),0,(F58/365))*12,0) -> 0 | H58: =IF(OR($B$58<$K18,$B$57>$L18),0,M18) -> 0 | I58: =(F58*$E$57)*H58 -> 0 | J58: =IF(ISERROR(I58/H58),0,(I58/H58)) -> 0
F59: =IF(OR($B$58<$K19,$B$57>$L19),0,(MIN($B$58,$L19)-MAX($B$57,$K19)+1)) -> 0 | G59: =ROUND(IF(ISERROR(F59/365),0,(F59/365))*12,0) -> 0 | H59: =IF(OR($B$58<$K19,$B$57>$L19),0,M19) -> 0 | I59: =(F59*$E$57)*H59 -> 0 | J59: =IF(ISERROR(I59/H59),0,(I59/H59)) -> 0
F60: =IF(OR($B$58<$K20,$B$57>$L20),0,(MIN($B$58,$L20)-MAX($B$57,$K20)+1)) -> 0 | G60: =ROUND(IF(ISERROR(F60/365),0,(F60/365))*12,0) -> 0 | H60: =IF(OR($B$58<$K20,$B$57>$L20),0,M20) -> 0 | I60: =(F60*$E$57)*H60 -> 0 | J60: =IF(ISERROR(I60/H60),0,(I60/H60)) -> 0
F61: =IF(OR($B$58<$K21,$B$57>$L21),0,(MIN($B$58,$L21)-MAX($B$57,$K21)+1)) -> 365 | G61: =ROUND(IF(ISERROR(F61/365),0,(F61/365))*12,0) -> 12 | H61: =IF(OR($B$58<$K21,$B$57>$L21),0,M21) -> 0.53 | I61: =(F61*$E$57)*H61 -> 0 | J61: =IF(ISERROR(I61/H61),0,(I61/H61)) -> 0
B62: Totals: | D62: =SUM(D57:D61) -> 0 | F62: =SUM(F57:F61) -> 365 | G62: =SUM(G57:G61) -> 12 | H62: =AVERAGEIF(H57:H61,"<>0") -> 0.53 | I62: =SUM(I57:I61) -> 0 | J62: =SUM(J57:J61) -> 0
A65: 6th Budget Period | B65: Enter | C65: Calculated | D65: Enter Amount: | E65: Calculated | G65: Calculated | I65: Calculated | J65: Calculated
B66: Dates: | C66: Total # Months | D66: Total MTDC for the Period | E66: MTDC Daily Rate | F66: Days at Rate | G66: Months at Rate | H66: Use Rate | I66: F&A Amount | J66: MTDC Amount
A67: Project Start Date | C67: =ROUND(IF((B67=0),0,(B68-B67))/30,0) -> 0 | D67: 0 | E67: =IF(ISERROR(D67/F72),0,(D67/F72)) -> 0 | F67: =IF(OR($B$68<$K17,$B$67>$L17),0,(MIN($B$68,$L17)-MAX($B$67,$K17)+1)) -> 0 | G67: =ROUND(IF(ISERROR(F67/365),0,(F67/365))*12,0) -> 0 | H67: =IF(OR($B$68<$K17,$B$67>$L17),0,M17) -> 0 | I67: =(F67*$E$67)*H67 -> 0 | J67: =IF(ISERROR(I67/H67),0,(I67/H67)) -> 0
A68: Project End Date | F68: =IF(OR($B$68<$K18,$B$67>$L18),0,(MIN($B$68,$L18)-MAX($B$67,$K18)+1)) -> 0 | G68: =ROUND(IF(ISERROR(F68/365),0,(F68/365))*12,0) -> 0 | H68: =IF(OR($B$68<$K18,$B$67>$L18),0,M18) -> 0 | I68: =(F68*$E$67)*H68 -> 0 | J68: =IF(ISERROR(I68/H68),0,(I68/H68)) -> 0
F69: =IF(OR($B$68<$K19,$B$67>$L19),0,(MIN($B$68,$L19)-MAX($B$67,$K19)+1)) -> 0 | G69: =ROUND(IF(ISERROR(F69/365),0,(F69/365))*12,0) -> 0 | H69: =IF(OR($B$68<$K19,$B$67>$L19),0,M19) -> 0 | I69: =(F69*$E$67)*H69 -> 0 | J69: =IF(ISERROR(I69/H69),0,(I69/H69)) -> 0
F70: =IF(OR($B$68<$K20,$B$67>$L20),0,(MIN($B$68,$L20)-MAX($B$67,$K20)+1)) -> 0 | G70: =ROUND(IF(ISERROR(F70/365),0,(F70/365))*12,0) -> 0 | H70: =IF(OR($B$68<$K20,$B$67>$L20),0,M20) -> 0 | I70: =(F70*$E$67)*H70 -> 0 | J70: =IF(ISERROR(I70/H70),0,(I70/H70)) -> 0
F71: =IF(OR($B$68<$K21,$B$67>$L21),0,(MIN($B$68,$L21)-MAX($B$67,$K21)+1)) -> 0 | G71: =ROUND(IF(ISERROR(F71/365),0,(F71/365))*12,0) -> 0 | H71: =IF(OR($B$68<$K21,$B$67>$L21),0,M21) -> 0 | I71: =(F71*$E$67)*H71 -> 0 | J71: =IF(ISERROR(I71/H71),0,(I71/H71)) -> 0
B72: Totals: | D72: =SUM(D67:D71) -> 0 | F72: =SUM(F67:F71) -> 0 | G72: =SUM(G67:G71) -> 0 | H72: =AVERAGEIF(H67:H71,"<>0") ->  | I72: =SUM(I67:I71) -> 0 | J72: =SUM(J67:J71) -> 0
A75: 7th Budget Period | B75: Enter | C75: Calculated | D75: Enter Amount: | E75: Calculated | G75: Calculated | I75: Calculated | J75: Calculated
B76: Dates: | C76: Total # Months | D76: Total MTDC for the Period | E76: MTDC Daily Rate | F76: Days at Rate | G76: Months at Rate | H76: Use Rate | I76: F&A Amount | J76: MTDC Amount
A77: Project Start Date | C77: =ROUND(IF((B77=0),0,(B78-B77))/30,0) -> 0 | D77: 0 | E77: =IF(ISERROR(D77/F82),0,(D77/F82)) -> 0 | F77: =IF(OR($B$78<$K17,$B$77>$L17),0,(MIN($B$78,$L17)-MAX($B$77,$K17)+1)) -> 0 | G77: =ROUND(IF(ISERROR(F77/365),0,(F77/365))*12,0) -> 0 | H77: =IF(OR($B$78<$K17,$B$77>$L17),0,M17) -> 0 | I77: =(F77*$E$77)*H77 -> 0 | J77: =IF(ISERROR(I77/H77),0,(I77/H77)) -> 0
A78: Project End Date | F78: =IF(OR($B$78<$K18,$B$77>$L18),0,(MIN($B$78,$L18)-MAX($B$77,$K18)+1)) -> 0 | G78: =ROUND(IF(ISERROR(F78/365),0,(F78/365))*12,0) -> 0 | H78: =IF(OR($B$78<$K18,$B$77>$L18),0,M18) -> 0 | I78: =(F78*$E$77)*H78 -> 0 | J78: =IF(ISERROR(I78/H78),0,(I78/H78)) -> 0
F79: =IF(OR($B$78<$K19,$B$77>$L19),0,(MIN($B$78,$L19)-MAX($B$77,$K19)+1)) -> 0 | G79: =ROUND(IF(ISERROR(F79/365),0,(F79/365))*12,0) -> 0 | H79: =IF(OR($B$78<$K19,$B$77>$L19),0,M19) -> 0 | I79: =(F79*$E$77)*H79 -> 0 | J79: =IF(ISERROR(I79/H79),0,(I79/H79)) -> 0
F80: =IF(OR($B$78<$K20,$B$77>$L20),0,(MIN($B$78,$L20)-MAX($B$77,$K20)+1)) -> 0 | G80: =ROUND(IF(ISERROR(F80/365),0,(F80/365))*12,0) -> 0 | H80: =IF(OR($B$78<$K20,$B$77>$L20),0,M20) -> 0 | I80: =(F80*$E$77)*H80 -> 0 | J80: =IF(ISERROR(I80/H80),0,(I80/H80)) -> 0
F81: =IF(OR($B$78<$K21,$B$77>$L21),0,(MIN($B$78,$L21)-MAX($B$77,$K21)+1)) -> 0 | G81: =ROUND(IF(ISERROR(F81/365),0,(F81/365))*12,0) -> 0 | H81: =IF(OR($B$78<$K21,$B$77>$L21),0,M21) -> 0 | I81: =(F81*$E$77)*H81 -> 0 | J81: =IF(ISERROR(I81/H81),0,(I81/H81)) -> 0
B82: Totals: | D82: =SUM(D77:D81) -> 0 | F82: =SUM(F77:F81) -> 0 | G82: =SUM(G77:G81) -> 0 | H82: =AVERAGEIF(H77:H81,"<>0") ->  | I82: =SUM(I77:I81) -> 0 | J82: =SUM(J77:J81) -> 0

Sheet SPA USE ONLY
A1: Sponsor: | B1: =Summary!D3 -> .
A2: Title: | B2: =Summary!D4 -> 0
A3: PI Name: | B3: =Summary!D5 -> .
A4: Period of Performance: | B4: =Summary!D6 -> .
A5: Account Number:
A7: Budget Categories | B7: Budget Code | C7: Amount
A8: Salary/Hourly | B8: 0108 | C8: =ROUND(Summary!R39,0) -> 0
A9: Payroll Benefits | B9: 0130 | C9: =ROUND(Summary!R41,0) -> 0
A10: Equipment | B10: 0710 | C10: =ROUND(Summary!R66,0) -> 0
A11: Travel Domestic | B11: 0215 | C11: =ROUND(Summary!R71+Summary!R76+Summary!R77,0) -> 0
A12: Travel Foreign | B12: 0216 | C12: =ROUND(Summary!R72,0) -> 0
A13: Student Tuition | B13: 0610 | C13: =ROUND(SUM(Summary!R91:R93),0) -> 0
A14: Supplies | B14: 0410 | C14: =ROUND(Summary!R81,0) -> 0
A15: Subcontracts
A16: Subject to IDC | B16: 0396 | C16: =ROUND(Summary!R87+Summary!R89,0) -> 0
A17: Not Subejct to IDC | B17: 0376 | C17: =ROUND(Summary!R88+Summary!R90,0) -> 0
A18: Other Direct Costs
A19: Computer Usage | B19: 0353 | C19: =ROUND(Summary!R84,0) -> 0
A20: Printing/Copying | B20: 0373 | C20: =ROUND(Summary!R82,0) -> 0
A21: Services/Honoraria | B21: 0302 | C21: =ROUND(Summary!R75+Summary!R83,0) -> 0
A22: Other | B22: 0630 | C22: =ROUND(Summary!R85+Summary!R95+Summary!R96+Summary!R78+Summary!R86,0) -> 0
A23: Total Direct Costs | C23: =SUM(C8:C22) -> 0
A24: Indirect Costs | B24: 0642 | C24: =ROUND(Summary!R104,0) -> 0
A25: Total Costs | C25: =SUM(C23:C24) -> 0
